Workbook

Sheet Лист3
A1: № по GPS | B1: ШИРОТА, °,' | E1: ДОЛГОТА, °,' | H1: ПУ | I1: Sдо сл(.) | J1: Sпройдено | K1: Sосталось | L1: t на курсе, ч, м | M1: Опер. время | N1: попр ГК | O1: ГКК | P1: орт. попр | Q1: Vсуд. | R1: ШИР | S1: ДОЛ | T1: РШ | U1: РД | V1: Ср.Ш | W1: Ср.Д | X1: цена Ш | Y1: цена Д | Z1: РД м.м. | AA1: 1 | AB1: 2 | AC1: 3 | AD1: 4 | AE1: 5 | AF1: 6 | AG1: 7 | AH1: 8
A2: 1 | B2: 47 | C2: 2.6 | D2: N | E2: 38 | F2: 55.3 | G2: e | H2: =IF(I2=0,"END",AA2+AB2+AC2+AD2+AE2+AF2+AG2+AH2) -> 288.7211207 | I2: =SQRT(T2*T2+Z2*Z2) -> 6.854391111 | J2: 0 | K2: =K3+I2 -> 315.8735307 | L2: =I2/Q2/24 -> 00:13:42.527 | M2: =0 -> 00:00:00 | N2: =IF(I2=0,"END",-57.2957795130823*(Q2*COS(H2*0.0174532925199432)/(900*COS(B2*0.0174532925199432)+Q2*SIN(H2*0.0174532925199432)))) -> -0.9424439488 | O2: =IF(I2=0,"END",H2-N2) -> 289.6635646 | P2: =ABS(S2-S3)/2*SIN(V2*0.0174532925199432) -> 0.05795691152 | Q2: 30 | R2: =IF(D2="N",C2/60+B2,IF(D2="n",C2/60+B2,IF(D2="s",-(C2/60+B2),IF(D2="S",-(C2/60+B2),"ERROR") ) )) -> 47.04333333 | S2: =IF(G2="E",F2/60+E2,IF(G2="e",F2/60+E2,IF(G2="w",-(F2/60+E2),IF(G2="W",-(F2/60+E2),"ERROR") ) )) -> 38.92166667 | T2: =IF(R3>0,ABS((R2*60)-(R3*60)),0) -> 2.2 | U2: =IF(S3=0,0,ABS((S2*60)-(S3*60))) -> 9.5 | V2: =(R2+R3)/2 -> 47.06166667 | W2: 38.8425 | X2: =1842.93625878542/POWER((1-0.0066934216*SIN(V2*0.0174532925199432)*SIN(V2*0.0174532925199432)),3/2) -> 1852.897805 | Y2: =(6378245*COS(V2*0.0174532925199432)*0.000290888)/SQRT(1-0.0066934216*SIN(V2*0.0174532925199432)*SIN(V2*0.0174532925199432)) -> 1266.160975 | Z2: =U2*Y2/X2 -> 6.491739174 | AA2: =IF(R2<R3,IF(S2<S3,ATAN(Z2/T2)*57.2957795130823,0),0) -> 0 | AB2: =IF(R2>R3,IF(S2<S3,180-ATAN(Z2/T2)*57.2957795130823,0),0) -> 0 | AC2: =IF(R2>R3,IF(S2>S3,180+ATAN(Z2/T2)*57.2957795130823,0),0) -> 0 | AD2: =IF(R2<R3,IF(S2>S3,360-ATAN(Z2/T2)*57.2957795130823,0),0) -> 288.7211207 | AE2: =IF(R2<R3,IF(S2=S3,0,0),0) -> 0 | AF2: =IF(R2>R3,IF(S2=S3,180,0),0) -> 0 | AG2: =IF(R2=R3,IF(S2<S3,90,0),0) -> 0 | AH2: =IF(R2=R3,IF(S2>S3,270,0),0) -> 0
B3: 47 | C3: 4.8 | D3: =D2 -> N | E3: 38 | F3: 45.8 | G3: =G2 -> e | H3: 231.0456448 | I3: 6.680440281 | J3: =IF(K2>0,I2+J2,0) -> 6.854391111 | K3: 309.0191396 | L3: =I3/Q3/24 -> 00:13:21.653 | M3: =M2+L2 -> 00:13:42.527 | N3: 1.830167788 | O3: 229.215477 | P3: 0.04635297736 | Q3: =Q2 -> 30 | R3: 47.08 | S3: 38.76333333 | T3: =IF(R4>0,ABS((R3*60)-(R4*60)),0) -> 4.2 | U3: =IF(S4=0,0,ABS((S3*60)-(S4*60))) -> 7.6 | V3: 47.045 | W3: 38.7 | X3: =1842.93625878542/POWER((1-0.0066934216*SIN(V3*0.0174532925199432)*SIN(V3*0.0174532925199432)),3/2) -> 1852.892388 | Y3: =(6378245*COS(V3*0.0174532925199432)*0.000290888)/SQRT(1-0.0066934216*SIN(V3*0.0174532925199432)*SIN(V3*0.0174532925199432)) -> 1266.555506 | Z3: =U3*Y3/X3 -> 5.195024768 | AA3: =IF(R3<R4,IF(S3<S4,ATAN(Z3/T3)*57.2957795130823,0),0) -> 0 | AB3: =IF(R3>R4,IF(S3<S4,180-ATAN(Z3/T3)*57.2957795130823,0),0) -> 0 | AC3: =IF(R3>R4,IF(S3>S4,180+ATAN(Z3/T3)*57.2957795130823,0),0) -> 231.0456448 | AD3: =IF(R3<R4,IF(S3>S4,360-ATAN(Z3/T3)*57.2957795130823,0),0) -> 0 | AE3: =IF(R3<R4,IF(S3=S4,0,0),0) -> 0 | AF3: =IF(R3>R4,IF(S3=S4,180,0),0) -> 0 | AG3: =IF(R3=R4,IF(S3<S4,90,0),0) -> 0 | AH3: =IF(R3=R4,IF(S3>S4,270,0),0) -> 0
B4: 47 | C4: 0.6 | D4: =D3 -> N | E4: 38 | F4: 38.2 | G4: =G3 -> e | H4: =IF(I4=0,"END",AA4+AB4+AC4+AD4+AE4+AF4+AG4+AH4) -> 268.9443092 | I4: =SQRT(T4*T4+Z4*Z4) -> 16.28289833 | J4: =IF(K3>0,I3+J3,0) -> 13.53483139 | K4: =K5+I4 -> 302.3386993 | L4: 00:32:33.948 | M4: =M3+L3 -> 00:27:04.180 | N4: 0.05424586637 | O4: =IF(I4=0,"END",H4-N4) -> 268.8900633 | P4: =ABS(S4-S5)/2*SIN(V4*0.0174532925199432) -> 0.1450695221 | Q4: =Q3 -> 30 | R4: 47.01 | S4: 38.63666667 | T4: =IF(R5>0,ABS((R4*60)-(R5*60)),0) -> 0.3 | U4: =IF(S5=0,0,ABS((S4*60)-(S5*60))) -> 23.8 | V4: 47.0075 | W4: 38.43833333 | X4: =1842.93625878542/POWER((1-0.0066934216*SIN(V4*0.0174532925199432)*SIN(V4*0.0174532925199432)),3/2) -> 1852.880199 | Y4: =(6378245*COS(V4*0.0174532925199432)*0.000290888)/SQRT(1-0.0066934216*SIN(V4*0.0174532925199432)*SIN(V4*0.0174532925199432)) -> 1267.442806 | Z4: =U4*Y4/X4 -> 16.28013446 | AA4: =IF(R4<R5,IF(S4<S5,ATAN(Z4/T4)*57.2957795130823,0),0) -> 0 | AB4: =IF(R4>R5,IF(S4<S5,180-ATAN(Z4/T4)*57.2957795130823,0),0) -> 0 | AC4: =IF(R4>R5,IF(S4>S5,180+ATAN(Z4/T4)*57.2957795130823,0),0) -> 268.9443092 | AD4: =IF(R4<R5,IF(S4>S5,360-ATAN(Z4/T4)*57.2957795130823,0),0) -> 0 | AE4: =IF(R4<R5,IF(S4=S5,0,0),0) -> 0 | AF4: =IF(R4>R5,IF(S4=S5,180,0),0) -> 0 | AG4: =IF(R4=R5,IF(S4<S5,90,0),0) -> 0 | AH4: =IF(R4=R5,IF(S4>S5,270,0),0) -> 0
B5: 47 | C5: 0.3 | D5: =D4 -> N | E5: 38 | F5: 14.4 | G5: =G4 -> e | H5: 245.1915661 | I5: 11.91651663 | J5: =IF(K4>0,I4+J4,0) -> 29.81772973 | K5: 286.055801 | L5: 00:23:49.982 | M5: 00:59:38.128 | N5: 1.229552008 | O5: 243.9620141 | P5: 0.09623741873 | Q5: 30 | R5: 47.005 | S5: 38.24 | T5: =IF(R6>0,ABS((R5*60)-(R6*60)),0) -> 5 | U5: 15.8 | V5: =(R5+R6)/2 -> 46.96333333 | W5: 38.10833333 | X5: =1842.93625878542/POWER((1-0.0066934216*SIN(V5*0.0174532925199432)*SIN(V5*0.0174532925199432)),3/2) -> 1852.865842 | Y5: =(6378245*COS(V5*0.0174532925199432)*0.000290888)/SQRT(1-0.0066934216*SIN(V5*0.0174532925199432)*SIN(V5*0.0174532925199432)) -> 1268.487146 | Z5: =U5*Y5/X5 -> 10.81680954 | AA5: =IF(R5<R6,IF(S5<S6,ATAN(Z5/T5)*57.2957795130823,0),0) -> 0 | AB5: =IF(R5>R6,IF(S5<S6,180-ATAN(Z5/T5)*57.2957795130823,0),0) -> 0 | AC5: =IF(R5>R6,IF(S5>S6,180+ATAN(Z5/T5)*57.2957795130823,0),0) -> 245.1915661 | AD5: =IF(R5<R6,IF(S5>S6,360-ATAN(Z5/T5)*57.2957795130823,0),0) -> 0 | AE5: =IF(R5<R6,IF(S5=S6,0,0),0) -> 0 | AF5: =IF(R5>R6,IF(S5=S6,180,0),0) -> 0 | AG5: =IF(R5=R6,IF(S5<S6,90,0),0) -> 0 | AH5: =IF(R5=R6,IF(S5>S6,270,0),0) -> 0
B6: 46 | C6: 55.3 | D6: N | E6: 37 | F6: 58.6 | G6: e | H6: 256.6470196 | I6: 27.27868845 | J6: 41.73424636 | K6: 274.1392844 | L6: 00:54:33.443 | M6: 01:23:28.110 | N6: 0.6660580721 | O6: 255.9809615 | P6: 0.2353587172 | Q6: 30 | R6: 46.92166667 | S6: 37.97666667 | T6: 6.3 | U6: 38.7 | V6: 46.86916667 | W6: 37.65416667 | X6: 1852.835227 | Y6: 1270.711222 | Z6: 26.54122912 | AA6: 0 | AB6: 0 | AC6: 256.6470196 | AD6: 0 | AE6: 0 | AF6: 0 | AG6: 0 | AH6: 0
B7: 46 | C7: 49 | D7: N | E7: 37 | F7: 19.9 | G7: e | H7: 232.0286504 | I7: 30.39329121 | J7: 69.0129348 | K7: 246.8605959 | L7: 01:00:47.195 | M7: 02:18:01.552 | N7: 1.758089989 | O7: 230.2705604 | P7: 0.2109180936 | Q7: 30 | R7: 46.81666667 | S7: 37.33166667 | T7: 18.7 | U7: 34.8 | V7: 46.66083333 | W7: 37.04166667 | X7: 1852.767474 | Y7: 1275.619445 | Z7: 23.95959412 | AA7: 0 | AB7: 0 | AC7: 232.0286504 | AD7: 0 | AE7: 0 | AF7: 0 | AG7: 0 | AH7: 0
B8: 46 | C8: 30.3 | D8: N | E8: 36 | F8: 45.1 | G8: e | H8: 183.9675672 | I8: 61.44726595 | J8: 99.40622601 | K8: 216.4673047 | L8: 02:02:53.672 | M8: 03:18:48.747 | N8: 2.751898117 | O8: =IF(I8=0,"END",H8-N8) -> 181.2156691 | P8: 0.03656284454 | Q8: 30 | R8: 46.505 | S8: 36.75166667 | T8: 61.3 | U8: 6.1 | V8: 45.99416667 | W8: 36.70083333 | X8: 1852.55052 | Y8: 1291.211267 | Z8: 4.251645848 | AA8: 0 | AB8: 0 | AC8: 183.9675672 | AD8: 0 | AE8: 0 | AF8: 0 | AG8: 0 | AH8: 0
B9: 45 | C9: 29 | D9: N | E9: 36 | F9: 39 | G9: e | H9: 158.0912599 | I9: 3.772448713 | J9: 160.853492 | K9: 155.0200388 | L9: 00:07:32.694 | M9: 05:21:42.419 | N9: 2.462569324 | O9: =IF(I9=0,"END",H9-N9) -> 155.6286905 | P9: 0.0118781589 | Q9: 30 | R9: 45.48333333 | S9: 36.65 | T9: 3.5 | U9: 2 | V9: 45.45416667 | W9: 36.66666667 | X9: 1852.374684 | Y9: 1303.711678 | Z9: 1.407611202 | AA9: 0 | AB9: 158.0912599 | AC9: 0 | AD9: 0 | AE9: 0 | AF9: 0 | AG9: 0 | AH9: 0
B10: 45 | C10: 25.5 | D10: N | E10: 36 | F10: 41 | G10: e | H10: 194.4119011 | I10: 4.388086572 | J10: 164.6259407 | K10: 151.2475901 | L10: 00:08:46.570 | M10: 05:29:15.113 | N10: 2.647011044 | O10: =IF(I10=0,"END",H10-N10) -> 191.76489 | P10: 0.009195354065 | Q10: 30 | R10: 45.425 | S10: 36.68333333 | T10: 4.25 | U10: 1.55 | V10: 45.38958333 | W10: 36.67041667 | X10: 1852.353652 | Y10: 1305.198926 | Z10: 1.092155558 | AA10: 0 | AB10: 0 | AC10: 194.4119011 | AD10: 0 | AE10: 0 | AF10: 0 | AG10: 0 | AH10: 0
B11: 45 | C11: 21.25 | D11: =D10 -> N | E11: 36 | F11: 39.45 | G11: =G10 -> e | H11: =IF(I11=0,"END",AA11+AB11+AC11+AD11+AE11+AF11+AG11+AH11) -> 246.860406 | I11: =SQRT(T11*T11+Z11*Z11) -> 7.939483588 | J11: =IF(K10>0,I10+J10,0) -> 169.0140272 | K11: =K12+I11 -> 146.8595035 | L11: 00:15:52.738 | M11: 05:38:01.683 | N11: 1.10949343 | O11: =IF(I11=0,"END",H11-N11) -> 245.7509125 | P11: =ABS(S11-S12)/2*SIN(V11*0.0174532925199432) -> 0.06133627156 | Q11: =Q10 -> 30 | R11: 45.35416667 | S11: 36.6575 | T11: =IF(R12>0,ABS((R11*60)-(R12*60)),0) -> 3.12 | U11: =IF(S12=0,0,ABS((S11*60)-(S12*60))) -> 10.35 | V11: =(R11+R12)/2 -> 45.32816667 | W11: =(S11+S12)/2 -> 36.57125 | X11: =1842.93625878542/POWER((1-0.0066934216*SIN(V11*0.0174532925199432)*SIN(V11*0.0174532925199432)),3/2) -> 1852.33365 | Y11: =(6378245*COS(V11*0.0174532925199432)*0.000290888)/SQRT(1-0.0066934216*SIN(V11*0.0174532925199432)*SIN(V11*0.0174532925199432)) -> 1306.611703 | Z11: =U11*Y11/X11 -> 7.300753361 | AA11: =IF(R11<R12,IF(S11<S12,ATAN(Z11/T11)*57.2957795130823,0),0) -> 0 | AB11: =IF(R11>R12,IF(S11<S12,180-ATAN(Z11/T11)*57.2957795130823,0),0) -> 0 | AC11: =IF(R11>R12,IF(S11>S12,180+ATAN(Z11/T11)*57.2957795130823,0),0) -> 246.860406 | AD11: =IF(R11<R12,IF(S11>S12,360-ATAN(Z11/T11)*57.2957795130823,0),0) -> 0 | AE11: =IF(R11<R12,IF(S11=S12,0,0),0) -> 0 | AF11: =IF(R11>R12,IF(S11=S12,180,0),0) -> 0 | AG11: =IF(R11=R12,IF(S11<S12,90,0),0) -> 0 | AH11: =IF(R11=R12,IF(S11>S12,270,0),0) -> 0
B12: 45 | C12: 18.13 | D12: N | E12: 36 | F12: 29.1 | G12: e | H12: 193.5745335 | I12: 2.767303463 | J12: 176.9535108 | K12: 138.9200199 | L12: 00:05:32.076 | M12: 05:53:54.421 | N12: 2.654873492 | O12: 190.91966 | P12: 0.005447556358 | Q12: 30 | R12: 45.30216667 | S12: 36.485 | T12: 2.69 | U12: 0.92 | V12: 45.27975 | W12: 36.47733333 | X12: 1852.317882 | Y12: 1307.724373 | Z12: 0.649514014 | AA12: 0 | AB12: 0 | AC12: 193.5745335 | AD12: 0 | AE12: 0 | AF12: 0 | AG12: 0 | AH12: 0
B13: 45 | C13: 15.44 | D13: N | E13: 36 | F13: 28.18 | G13: e | H13: 174.049402 | I13: 1.839914096 | J13: 179.7208143 | K13: 136.1527164 | L13: 00:03:40.790 | M13: 05:59:26.498 | N13: 2.673330481 | O13: 171.3760715 | P13: 0.001597698211 | Q13: 30 | R13: 45.25733333 | S13: 36.46966667 | T13: 1.83 | U13: 0.27 | V13: 45.24208333 | W13: 36.47191667 | X13: 1852.305615 | Y13: 1308.589345 | Z13: 0.1907455877 | AA13: 0 | AB13: 174.049402 | AC13: 0 | AD13: 0 | AE13: 0 | AF13: 0 | AG13: 0 | AH13: 0
B14: 45 | C14: 13.61 | D14: N | E14: 36 | F14: 28.45 | G14: e | H14: 199.8871911 | I14: 1.35054057 | J14: 181.5607284 | K14: 134.3128023 | L14: 00:02:42.065 | M14: 06:03:07.287 | N14: 2.581268227 | O14: 197.3059229 | P14: 0.003844590498 | Q14: 30 | R14: 45.22683333 | S14: 36.47416667 | T14: 1.27 | U14: 0.65 | V14: 45.21625 | W14: 36.46875 | X14: 1852.297202 | Y14: 1309.182249 | Z14: 0.4594124859 | AA14: 0 | AB14: 0 | AC14: 199.8871911 | AD14: 0 | AE14: 0 | AF14: 0 | AG14: 0 | AH14: 0
B15: 45 | C15: 12.34 | D15: N | E15: 36 | F15: 27.8 | G15: e | H15: 176.4027437 | I15: 3.15621859 | J15: 182.911269 | K15: 132.9622618 | L15: 00:06:18.746 | M15: 06:05:49.352 | N15: 2.68767796 | O15: 173.7150657 | P15: 0.001655074291 | Q15: 30 | R15: 45.20566667 | S15: 36.46333333 | T15: 3.15 | U15: 0.28 | V15: 45.17941667 | W15: 36.46566667 | X15: 1852.285206 | Y15: 1310.027153 | Z15: 0.1980297643 | AA15: 0 | AB15: 176.4027437 | AC15: 0 | AD15: 0 | AE15: 0 | AF15: 0 | AG15: 0 | AH15: 0
B16: 45 | C16: 9.19 | D16: N | E16: 36 | F16: 28.08 | G16: e | H16: 153.0058001 | I16: 2.682221373 | J16: 186.0674876 | K16: 129.8060432 | L16: 00:05:21.867 | M16: 06:12:08.099 | N16: 2.356269989 | O16: 150.6495301 | P16: 0.0101587407 | Q16: 30 | R16: 45.15316667 | S16: 36.468 | T16: 2.39 | U16: 1.72 | V16: 45.13325 | W16: 36.48233333 | X16: 1852.270171 | Y16: 1311.08538 | Z16: 1.217461085 | AA16: 0 | AB16: 153.0058001 | AC16: 0 | AD16: 0 | AE16: 0 | AF16: 0 | AG16: 0 | AH16: 0
B17: 45 | C17: 6.8 | D17: N | E17: 36 | F17: 29.8 | G17: e | H17: 184.2982565 | I17: 17.04794881 | J17: 188.7497089 | K17: 127.1238218 | L17: 00:34:05.754 | M17: 06:17:29.965 | N17: 2.702901924 | O17: 181.5953546 | P17: 0.01060135535 | Q17: 30 | R17: 45.11333333 | S17: 36.49666667 | T17: 17 | U17: 1.8 | V17: 44.97166667 | W17: 36.48166667 | X17: 1852.217549 | Y17: 1314.78242 | Z17: 1.277716194 | AA17: 0 | AB17: 0 | AC17: 184.2982565 | AD17: 0 | AE17: 0 | AF17: 0 | AG17: 0 | AH17: 0
B18: 44 | C18: 49.8 | D18: N | E18: 36 | F18: 28 | G18: e | H18: 237.8878019 | I18: 24.83168455 | J18: 205.7976577 | K18: 110.075873 | L18: 00:49:39.802 | M18: 06:51:35.719 | N18: 1.46900865 | O18: 236.4187932 | P18: 0.172978849 | Q18: 30 | R18: 44.83 | S18: 36.46666667 | T18: 13.2 | U18: 29.5 | V18: 44.72 | W18: 36.22083333 | X18: 1852.135596 | Y18: 1320.519599 | Z18: 21.03265456 | AA18: 0 | AB18: 0 | AC18: 237.8878019 | AD18: 0 | AE18: 0 | AF18: 0 | AG18: 0 | AH18: 0
B19: 44 | C19: 36.6 | D19: N | E19: 35 | F19: 58.5 | G19: e | H19: 258.8997253 | I19: 28.04806199 | J19: 230.6293423 | K19: 85.24418845 | L19: 00:56:05.767 | M19: 07:41:15.521 | N19: 0.5355123075 | O19: 258.364213 | P19: 0.2251345154 | Q19: 30 | R19: 44.61 | S19: 35.975 | T19: 5.4 | U19: 38.5 | V19: 44.565 | W19: 35.65416667 | X19: 1852.085127 | Y19: 1324.04034 | Z19: 27.52333158 | AA19: 0 | AB19: 0 | AC19: 258.8997253 | AD19: 0 | AE19: 0 | AF19: 0 | AG19: 0 | AH19: 0
B20: 44 | C20: 31.2 | D20: N | E20: 35 | F20: 20 | G20: e | H20: 259.9308265 | I20: 57.19612646 | J20: 258.6774043 | K20: 57.19612646 | L20: 01:54:23.535 | M20: 08:37:21.289 | N20: 0.4863866401 | O20: 259.4444398 | P20: 0.4585788796 | Q20: 30 | R20: 44.52 | S20: 35.33333333 | T20: 10 | U20: 78.6 | V20: 44.43666667 | W20: 34.67833333 | X20: 1852.043347 | Y20: 1326.947982 | Z20: 56.31515677 | AA20: 0 | AB20: 0 | AC20: 259.9308265 | AD20: 0 | AE20: 0 | AF20: 0 | AG20: 0 | AH20: 0
B21: 44 | C21: 21.2 | D21: N | E21: 34 | F21: 1.4 | G21: e | H21: END | I21: 0 | J21: 315.8735307 | K21: 0 | L21: 00:00:00 | M21: 10:31:44.824 | N21: END | O21: END | P21: 6.421286656 | Q21: 30 | R21: 44.35333333 | S21: 34.02333333 | T21: 0 | U21: 0 | V21: 22.17666667 | W21: 17.01166667 | X21: 1845.575737 | Y21: 1718.923742 | Z21: 0 | AA21: 0 | AB21: 0 | AD21: 0 | AE21: 0 | AF21: 0 | AG21: 0 | AH21: 0
D22: N | G22: e | H22: END | I22: 0 | J22: 0 | K22: 0 | L22: 00:00:00 | M22: 10:31:44.824 | N22: END | O22: END | P22: 0 | Q22: 30 | R22: 0 | S22: 0 | T22: 0 | U22: 0 | V22: 0 | W22: 0 | X22: 1842.936259 | Y22: 1855.354932 | Z22: 0 | AA22: 0 | AB22: 0 | AC22: 0 | AD22: 0 | AE22: 0 | AF22: 0 | AG22: 0 | AH22: 0
D23: N | G23: e | H23: END | I23: 0 | J23: 0 | K23: 0 | L23: 00:00:00 | M23: 10:31:44.824 | N23: END | O23: END | P23: 0 | Q23: 30 | R23: 0 | S23: 0 | T23: 0 | U23: 0 | V23: 0 | W23: 0 | X23: 1842.936259 | Y23: 1855.354932 | Z23: 0 | AA23: 0 | AB23: 0 | AC23: 0 | AD23: 0 | AE23: 0 | AF23: 0 | AG23: 0 | AH23: 0
D24: N | G24: e | H24: END | I24: 0 | J24: 0 | K24: 0 | L24: 00:00:00 | M24: 10:31:44.824 | N24: END | O24: END | P24: 0 | Q24: 30 | R24: 0 | S24: 0 | T24: 0 | U24: 0 | V24: 0 | W24: 0 | X24: 1842.936259 | Y24: 1855.354932 | Z24: 0 | AA24: 0 | AB24: 0 | AC24: 0 | AD24: 0 | AE24: 0 | AF24: 0 | AG24: 0 | AH24: 0
D25: N | G25: e | H25: END | I25: 0 | J25: 0 | K25: 0 | L25: 00:00:00 | M25: 10:31:44.824 | N25: END | O25: END | P25: 0 | Q25: 30 | R25: 0 | S25: 0 | T25: 0 | U25: 0 | V25: 0 | W25: 0 | X25: 1842.936259 | Y25: 1855.354932 | Z25: 0 | AA25: 0 | AB25: 0 | AC25: 0 | AD25: 0 | AE25: 0 | AF25: 0 | AG25: 0 | AH25: 0

Sheet Лист2
A1: ШИРОТА | D1: ДОЛГОТА | G1: ПУ | H1: Sдо сл(.) | I1: Sпройдено | J1: Sосталось | K1: t на курсе | L1: попр ГК | M1: ГКК | N1: орт. попр | O1: Vсуд. | P1: ШИР | Q1: ДОЛ | R1: РШ | S1: РД | T1: Ср.Ш | U1: Ср.Д | V1: цена Ш | W1: цена Д | X1: РД м.м. | Y1: 1 | Z1: 2 | AA1: 3 | AB1: 4 | AC1: 5 | AD1: 6 | AE1: 7 | AF1: 8
A2: 47 | B2: 2.6 | C2: N | D2: 38 | E2: 55.3 | F2: E | G2: =IF(H2=0,"END",Y2+Z2+AA2+AB2+AC2+AD2+AE2+AF2) -> 288.7211207 | H2: =SQRT(R2*R2+X2*X2) -> 6.854391111 | I2: 0 | J2: =J3+H2 -> 2038.854316 | K2: =H2/O2/24 -> 00:41:07.581 | L2: =IF(H2=0,"END",-57.2957795130823*(O2*COS(G2*0.0174532925199432)/(900*COS(A2*0.0174532925199432)+O2*SIN(G2*0.0174532925199432)))) -> -0.3043014345 | M2: =IF(H2=0,"END",G2-L2) -> 289.0254221 | N2: =ABS(Q2-Q3)/2*SIN(T2*0.0174532925199432) -> 0.05795691152 | O2: 10 | P2: =IF(C2="N",B2/60+A2,IF(C2="n",B2/60+A2,IF(C2="s",-(B2/60+A2),IF(C2="S",-(B2/60+A2),"ERROR") ) )) -> 47.04333333 | Q2: =IF(F2="E",E2/60+D2,IF(F2="e",E2/60+D2,IF(F2="w",-(E2/60+D2),IF(F2="W",-(E2/60+D2),"ERROR") ) )) -> 38.92166667 | R2: =IF(P3>0,ABS((P2*60)-(P3*60)),0) -> 2.2 | S2: =IF(Q3>0,ABS((Q2*60)-(Q3*60)),0) -> 9.5 | T2: =(P2+P3)/2 -> 47.06166667 | U2: =(Q2+Q3)/2 -> 38.8425 | V2: =1842.93625878542/POWER((1-0.0066934216*SIN(T2*0.0174532925199432)*SIN(T2*0.0174532925199432)),3/2) -> 1852.897805 | W2: =(6378245*COS(T2*0.0174532925199432)*0.000290888)/SQRT(1-0.0066934216*SIN(T2*0.0174532925199432)*SIN(T2*0.0174532925199432)) -> 1266.160975 | X2: =S2*W2/V2 -> 6.491739174 | Y2: =IF(P2<P3,IF(Q2<Q3,ATAN(X2/R2)*57.2957795130823,0),0) -> 0 | Z2: =IF(P2>P3,IF(Q2<Q3,180-ATAN(X2/R2)*57.2957795130823,0),0) -> 0 | AA2: =IF(P2>P3,IF(Q2>Q3,180+ATAN(X2/R2)*57.2957795130823,0),0) -> 0 | AB2: =IF(P2<P3,IF(Q2>Q3,360-ATAN(X2/R2)*57.2957795130823,0),0) -> 288.7211207 | AC2: =IF(P2<P3,IF(Q2=Q3,0,0),0) -> 0 | AD2: =IF(P2>P3,IF(Q2=Q3,180,0),0) -> 0 | AE2: =IF(P2=P3,IF(Q2<Q3,90,0),0) -> 0 | AF2: =IF(P2=P3,IF(Q2>Q3,270,0),0) -> 0
A3: 47 | B3: 4.8 | C3: =C2 -> N | D3: 38 | E3: 45.8 | F3: =F2 -> E | G3: 231.0456448 | H3: 6.680440281 | I3: =IF(J2>0,H2+I2,0) -> 6.854391111 | J3: 2031.999925 | K3: =H3/O3/24 -> 00:40:04.959 | L3: 0.5943994627 | M3: 230.4512453 | N3: 0.04635297736 | O3: =O2 -> 10 | P3: =IF(C3="N",B3/60+A3,IF(C3="n",B3/60+A3,IF(C3="s",-(B3/60+A3),IF(C3="S",-(B3/60+A3),"ERROR") ) )) -> 47.08 | Q3: =IF(F3="E",E3/60+D3,IF(F3="e",E3/60+D3,IF(F3="w",-(E3/60+D3),IF(F3="W",-(E3/60+D3),"ERROR") ) )) -> 38.76333333 | R3: =IF(P4>0,ABS((P3*60)-(P4*60)),0) -> 4.2 | S3: =IF(Q4>0,ABS((Q3*60)-(Q4*60)),0) -> 7.6 | T3: =(P3+P4)/2 -> 47.045 | U3: =(Q3+Q4)/2 -> 38.7 | V3: =1842.93625878542/POWER((1-0.0066934216*SIN(T3*0.0174532925199432)*SIN(T3*0.0174532925199432)),3/2) -> 1852.892388 | W3: =(6378245*COS(T3*0.0174532925199432)*0.000290888)/SQRT(1-0.0066934216*SIN(T3*0.0174532925199432)*SIN(T3*0.0174532925199432)) -> 1266.555506 | X3: =S3*W3/V3 -> 5.195024768 | Y3: =IF(P3<P4,IF(Q3<Q4,ATAN(X3/R3)*57.2957795130823,0),0) -> 0 | Z3: =IF(P3>P4,IF(Q3<Q4,180-ATAN(X3/R3)*57.2957795130823,0),0) -> 0 | AA3: =IF(P3>P4,IF(Q3>Q4,180+ATAN(X3/R3)*57.2957795130823,0),0) -> 231.0456448 | AB3: =IF(P3<P4,IF(Q3>Q4,360-ATAN(X3/R3)*57.2957795130823,0),0) -> 0 | AC3: =IF(P3<P4,IF(Q3=Q4,0,0),0) -> 0 | AD3: =IF(P3>P4,IF(Q3=Q4,180,0),0) -> 0 | AE3: =IF(P3=P4,IF(Q3<Q4,90,0),0) -> 0 | AF3: =IF(P3=P4,IF(Q3>Q4,270,0),0) -> 0
A4: 47 | B4: 0.6 | C4: =C3 -> N | D4: 38 | E4: 38.2 | F4: =F3 -> E | G4: 268.9443092 | H4: 16.28289833 | I4: =IF(J3>0,H3+I3,0) -> 13.53483139 | J4: 2025.319485 | K4: 01:37:41.843 | L4: 0.01748311877 | M4: 268.9268261 | N4: 0.1450695221 | O4: 10 | P4: =IF(C4="N",B4/60+A4,IF(C4="n",B4/60+A4,IF(C4="s",-(B4/60+A4),IF(C4="S",-(B4/60+A4),"ERROR") ) )) -> 47.01 | Q4: =IF(F4="E",E4/60+D4,IF(F4="e",E4/60+D4,IF(F4="w",-(E4/60+D4),IF(F4="W",-(E4/60+D4),"ERROR") ) )) -> 38.63666667 | R4: =IF(P5>0,ABS((P4*60)-(P5*60)),0) -> 0.3 | S4: =IF(Q5>0,ABS((Q4*60)-(Q5*60)),0) -> 23.8 | T4: =(P4+P5)/2 -> 47.0075 | U4: =(Q4+Q5)/2 -> 38.43833333 | V4: =1842.93625878542/POWER((1-0.0066934216*SIN(T4*0.0174532925199432)*SIN(T4*0.0174532925199432)),3/2) -> 1852.880199 | W4: =(6378245*COS(T4*0.0174532925199432)*0.000290888)/SQRT(1-0.0066934216*SIN(T4*0.0174532925199432)*SIN(T4*0.0174532925199432)) -> 1267.442806 | X4: =S4*W4/V4 -> 16.28013446 | Y4: =IF(P4<P5,IF(Q4<Q5,ATAN(X4/R4)*57.2957795130823,0),0) -> 0 | Z4: =IF(P4>P5,IF(Q4<Q5,180-ATAN(X4/R4)*57.2957795130823,0),0) -> 0 | AA4: =IF(P4>P5,IF(Q4>Q5,180+ATAN(X4/R4)*57.2957795130823,0),0) -> 268.9443092 | AB4: =IF(P4<P5,IF(Q4>Q5,360-ATAN(X4/R4)*57.2957795130823,0),0) -> 0 | AC4: =IF(P4<P5,IF(Q4=Q5,0,0),0) -> 0 | AD4: =IF(P4>P5,IF(Q4=Q5,180,0),0) -> 0 | AE4: =IF(P4=P5,IF(Q4<Q5,90,0),0) -> 0 | AF4: =IF(P4=P5,IF(Q4>Q5,270,0),0) -> 0
A5: 47 | B5: 0.3 | C5: N | D5: 38 | E5: 14.4 | F5: E | G5: 245.1915661 | H5: 11.91651663 | I5: 29.81772973 | J5: 2009.036586 | K5: 01:11:29.946 | L5: 0.3975465596 | M5: 244.7940195 | N5: 0.09623741873 | O5: 10 | P5: 47.005 | Q5: 38.24 | R5: 5 | S5: 15.8 | T5: 46.96333333 | U5: 38.10833333 | V5: 1852.865842 | W5: 1268.487146 | X5: 10.81680954 | Y5: 0 | Z5: 0 | AA5: 245.1915661 | AB5: 0 | AC5: 0 | AD5: 0 | AE5: 0 | AF5: 0
A6: 46 | B6: 55.3 | C6: N | D6: 37 | E6: 58.6 | F6: E | G6: 256.6470196 | H6: 27.27868845 | I6: 41.73424636 | J6: 1997.12007 | K6: 02:43:40.328 | L6: 0.2149996902 | M6: 256.4320199 | N6: 0.2353587172 | O6: 10 | P6: 46.92166667 | Q6: 37.97666667 | R6: 6.3 | S6: 38.7 | T6: 46.86916667 | U6: 37.65416667 | V6: 1852.835227 | W6: 1270.711222 | X6: 26.54122912 | Y6: 0 | Z6: 0 | AA6: 256.6470196 | AB6: 0 | AC6: 0 | AD6: 0 | AE6: 0 | AF6: 0
A7: 46 | B7: 49 | C7: N | D7: 37 | E7: 19.9 | F7: E | G7: 232.0286504 | H7: 30.39329121 | I7: 69.0129348 | J7: 1969.841381 | K7: 03:02:21.585 | L7: 0.5710625154 | M7: 231.4575879 | N7: 0.2109180936 | O7: 10 | P7: 46.81666667 | Q7: 37.33166667 | R7: 18.7 | S7: 34.8 | T7: 46.66083333 | U7: 37.04166667 | V7: 1852.767474 | W7: 1275.619445 | X7: 23.95959412 | Y7: 0 | Z7: 0 | AA7: 232.0286504 | AB7: 0 | AC7: 0 | AD7: 0 | AE7: 0 | AF7: 0
A8: 46 | B8: 30.3 | C8: N | D8: 36 | E8: 45.1 | F8: E | G8: 183.9675672 | H8: 61.44726595 | I8: 99.40622601 | J8: 1939.44809 | K8: 06:08:41.016 | L8: =IF(H8=0,"END",-57.2957795130823*(O8*COS(G8*0.0174532925199432)/(900*COS(A8*0.0174532925199432)+O8*SIN(G8*0.0174532925199432)))) -> 0.9152667217 | M8: =IF(H8=0,"END",G8-L8) -> 183.0523005 | N8: 0.03656284454 | O8: 10 | P8: 46.505 | Q8: 36.75166667 | R8: 61.3 | S8: 6.1 | T8: 45.99416667 | U8: 36.70083333 | V8: 1852.55052 | W8: 1291.211267 | X8: 4.251645848 | Y8: 0 | Z8: 0 | AA8: 183.9675672 | AB8: 0 | AC8: 0 | AD8: 0 | AE8: 0 | AF8: 0
A9: 45 | B9: 29 | C9: N | D9: 36 | E9: 39 | F9: E | G9: =IF(H9=0,"END",Y9+Z9+AA9+AB9+AC9+AD9+AE9+AF9) -> 158.0912599 | H9: =SQRT(R9*R9+X9*X9) -> 3.772448713 | I9: 160.853492 | J9: =J10+H9 -> 1878.000824 | K9: 00:22:38.082 | L9: =IF(H9=0,"END",-57.2957795130823*(O9*COS(G9*0.0174532925199432)/(900*COS(A9*0.0174532925199432)+O9*SIN(G9*0.0174532925199432)))) -> 0.8304259614 | M9: =IF(H9=0,"END",G9-L9) -> 157.2608339 | N9: =ABS(Q9-Q10)/2*SIN(T9*0.0174532925199432) -> 0.0118781589 | O9: =O8 -> 10 | P9: 45.48333333 | Q9: 36.65 | R9: 3.5 | S9: 2 | T9: 45.45416667 | U9: 36.66666667 | V9: 1852.374684 | W9: 1303.711678 | X9: 1.407611202 | Y9: 0 | Z9: 158.0912599 | AA9: 0 | AB9: 0 | AC9: 0 | AD9: 0 | AE9: 0 | AF9: 0
A10: 45 | B10: 25.5 | C10: N | D10: 36 | E10: 41 | F10: E | G10: 194.4119011 | H10: 4.388086572 | I10: 164.6259407 | J10: 1874.228375 | K10: 00:26:19.711 | L10: 0.8754083726 | M10: 193.5364927 | N10: 0.009195354065 | O10: 10 | P10: 45.425 | Q10: 36.68333333 | R10: 4.25 | S10: 1.55 | T10: 45.38958333 | U10: 36.67041667 | V10: 1852.353652 | W10: 1305.198926 | X10: 1.092155558 | Y10: 0 | Z10: 0 | AA10: 194.4119011 | AB10: 0 | AC10: 0 | AD10: 0 | AE10: 0 | AF10: 0
A11: 45 | B11: 21.25 | C11: N | D11: 36 | E11: 39.45 | F11: E | G11: 246.860406 | H11: 7.939483588 | I11: 169.0140272 | J11: 1869.840289 | K11: 00:47:38.214 | L11: 0.3589868208 | M11: 246.5014192 | N11: 0.06133627156 | O11: 10 | P11: 45.35416667 | Q11: 36.6575 | R11: 3.12 | S11: 10.35 | T11: 45.32816667 | U11: 36.57125 | V11: 1852.33365 | W11: 1306.611703 | X11: 7.300753361 | Y11: 0 | Z11: 0 | AA11: 246.860406 | AB11: 0 | AC11: 0 | AD11: 0 | AE11: 0 | AF11: 0
A12: 45 | B12: 18.13 | C12: N | D12: 36 | E12: 29.1 | F12: E | G12: 193.5745335 | H12: 2.767303463 | I12: 176.9535108 | J12: 1861.900805 | K12: 00:16:36.229 | L12: 0.8784060178 | M12: 192.6961275 | N12: 0.005447556358 | O12: 10 | P12: 45.30216667 | Q12: 36.485 | R12: 2.69 | S12: 0.92 | T12: 45.27975 | U12: 36.47733333 | V12: 1852.317882 | W12: 1307.724373 | X12: 0.649514014 | Y12: 0 | Z12: 0 | AA12: 193.5745335 | AB12: 0 | AC12: 0 | AD12: 0 | AE12: 0 | AF12: 0
A13: 45 | B13: 15.44 | C13: N | D13: 36 | E13: 28.18 | F13: E | G13: 174.049402 | H13: 1.839914096 | I13: 179.7208143 | J13: 1859.133502 | K13: 00:11:02.369 | L13: 0.8940087312 | M13: 173.1553933 | N13: 0.001597698211 | O13: 10 | P13: 45.25733333 | Q13: 36.46966667 | R13: 1.83 | S13: 0.27 | T13: 45.24208333 | U13: 36.47191667 | V13: 1852.305615 | W13: 1308.589345 | X13: 0.1907455877 | Y13: 0 | Z13: 174.049402 | AA13: 0 | AB13: 0 | AC13: 0 | AD13: 0 | AE13: 0 | AF13: 0
A14: 45 | B14: 13.61 | C14: N | D14: 36 | E14: 28.45 | F14: E | G14: 199.8871911 | H14: 1.35054057 | I14: 181.5607284 | J14: 1857.293588 | K14: 00:08:06.195 | L14: 0.8511749695 | M14: 199.0360162 | N14: 0.003844590498 | O14: 10 | P14: 45.22683333 | Q14: 36.47416667 | R14: 1.27 | S14: 0.65 | T14: 45.21625 | U14: 36.46875 | V14: 1852.297202 | W14: 1309.182249 | X14: 0.4594124859 | Y14: 0 | Z14: 0 | AA14: 199.8871911 | AB14: 0 | AC14: 0 | AD14: 0 | AE14: 0 | AF14: 0
A15: 45 | B15: 12.34 | C15: N | D15: 36 | E15: 27.8 | F15: E | G15: 176.4027437 | H15: 3.15621859 | I15: 182.911269 | J15: 1855.943047 | K15: 00:18:56.239 | L15: 0.897657447 | M15: 175.5050862 | N15: 0.001655074291 | O15: 10 | P15: 45.20566667 | Q15: 36.46333333 | R15: 3.15 | S15: 0.28 | T15: 45.17941667 | U15: 36.46566667 | V15: 1852.285206 | W15: 1310.027153 | X15: 0.1980297643 | Y15: 0 | Z15: 176.4027437 | AA15: 0 | AB15: 0 | AC15: 0 | AD15: 0 | AE15: 0 | AF15: 0
A16: 45 | B16: 9.19 | C16: N | D16: 36 | E16: 28.08 | F16: E | G16: 153.0058001 | H16: 2.682221373 | I16: 186.0674876 | J16: 1852.786828 | K16: 00:16:05.600 | L16: 0.7965478222 | M16: 152.2092523 | N16: 0.0101587407 | O16: 10 | P16: 45.15316667 | Q16: 36.468 | R16: 2.39 | S16: 1.72 | T16: 45.13325 | U16: 36.48233333 | V16: 1852.270171 | W16: 1311.08538 | X16: 1.217461085 | Y16: 0 | Z16: 153.0058001 | AA16: 0 | AB16: 0 | AC16: 0 | AD16: 0 | AE16: 0 | AF16: 0
A17: 45 | B17: 6.8 | C17: N | D17: 36 | E17: 29.8 | F17: E | G17: 184.2982565 | H17: 17.04794881 | I17: 188.7497089 | J17: 1850.104607 | K17: 01:42:17.262 | L17: 0.8988426669 | M17: 183.3994138 | N17: 0.01060135535 | O17: 10 | P17: 45.11333333 | Q17: 36.49666667 | R17: 17 | S17: 1.8 | T17: 44.97166667 | U17: 36.48166667 | V17: 1852.217549 | W17: 1314.78242 | X17: 1.277716194 | Y17: 0 | Z17: 0 | AA17: 184.2982565 | AB17: 0 | AC17: 0 | AD17: 0 | AE17: 0 | AF17: 0
A18: 44 | B18: 49.8 | C18: N | D18: 36 | E18: 28 | F18: E | G18: 237.8878019 | H18: 24.83168455 | I18: 205.7976577 | J18: 1833.056658 | K18: 02:28:59.406 | L18: 0.4766868859 | M18: 237.411115 | N18: 0.172978849 | O18: 10 | P18: 44.83 | Q18: 36.46666667 | R18: 13.2 | S18: 29.5 | T18: 44.72 | U18: 36.22083333 | V18: 1852.135596 | W18: 1320.519599 | X18: 21.03265456 | Y18: 0 | Z18: 0 | AA18: 237.8878019 | AB18: 0 | AC18: 0 | AD18: 0 | AE18: 0 | AF18: 0
A19: 44 | B19: 36.6 | C19: N | D19: 35 | E19: 58.5 | F19: E | G19: 258.8997253 | H19: 28.04806199 | I19: 230.6293423 | J19: 1808.224974 | K19: 02:48:17.302 | L19: 0.1730095432 | M19: 258.7267158 | N19: 0.2251345154 | O19: 10 | P19: 44.61 | Q19: 35.975 | R19: 5.4 | S19: 38.5 | T19: 44.565 | U19: 35.65416667 | V19: 1852.085127 | W19: 1324.04034 | X19: 27.52333158 | Y19: 0 | Z19: 0 | AA19: 258.8997253 | AB19: 0 | AC19: 0 | AD19: 0 | AE19: 0 | AF19: 0
A20: 44 | B20: 31.2 | C20: N | D20: 35 | E20: 20 | F20: E | G20: 259.9308265 | H20: 57.19612646 | I20: 258.6774043 | J20: 1780.176912 | K20: 05:43:10.606 | L20: 0.1571212977 | M20: 259.7737052 | N20: 0.4585788796 | O20: 10 | P20: 44.52 | Q20: 35.33333333 | R20: 10 | S20: 78.6 | T20: 44.43666667 | U20: 34.67833333 | V20: 1852.043347 | W20: 1326.947982 | X20: 56.31515677 | Y20: 0 | Z20: 0 | AA20: 259.9308265 | AB20: 0 | AC20: 0 | AD20: 0 | AE20: 0 | AF20: 0
A21: 44 | B21: 21.2 | C21: N | D21: 34 | E21: 1.4 | F21: E | G21: 270 | H21: 21.74042731 | I21: 315.8735307 | J21: 1722.980785 | K21: 02:10:26.554 | L21: 2.331806049e-14 | M21: 270 | N21: 0.1765179979 | O21: 10 | P21: 44.35333333 | Q21: 34.02333333 | R21: 0 | S21: 30.3 | T21: 44.35333333 | U21: 33.77083333 | V21: 1852.016219 | W21: 1328.832475 | X21: 21.74042731 | Y21: 0 | Z21: 0 | AA21: 0 | AB21: 0 | AC21: 0 | AD21: 0 | AE21: 0 | AF21: 270
A22: 44 | B22: 21.2 | C22: N | D22: 33 | E22: 31.1 | F22: E | G22: 316.7604103 | H22: 102.6773741 | I22: 337.613958 | J22: 1701.240358 | K22: 10:16:03.855 | L22: -0.6516176489 | M22: 317.4120279 | N22: 0.5837144909 | O22: 10 | P22: =IF(C22="N",B22/60+A22,IF(C22="n",B22/60+A22,IF(C22="s",-(B22/60+A22),IF(C22="S",-(B22/60+A22),"ERROR") ) )) -> 44.35333333 | Q22: =IF(F22="E",E22/60+D22,IF(F22="e",E22/60+D22,IF(F22="w",-(E22/60+D22),IF(F22="W",-(E22/60+D22),"ERROR") ) )) -> 33.51833333 | R22: =IF(P23>0,ABS((P22*60)-(P23*60)),0) -> 74.8 | S22: =IF(Q23>0,ABS((Q22*60)-(Q23*60)),0) -> 99.1 | T22: =(P22+P23)/2 -> 44.97666667 | U22: =(Q22+Q23)/2 -> 32.6925 | V22: =1842.93625878542/POWER((1-0.0066934216*SIN(T22*0.0174532925199432)*SIN(T22*0.0174532925199432)),3/2) -> 1852.219177 | W22: =(6378245*COS(T22*0.0174532925199432)*0.000290888)/SQRT(1-0.0066934216*SIN(T22*0.0174532925199432)*SIN(T22*0.0174532925199432)) -> 1314.668177 | X22: =S22*W22/V22 -> 70.33920067 | Y22: =IF(P22<P23,IF(Q22<Q23,ATAN(X22/R22)*57.2957795130823,0),0) -> 0 | Z22: =IF(P22>P23,IF(Q22<Q23,180-ATAN(X22/R22)*57.2957795130823,0),0) -> 0 | AA22: =IF(P22>P23,IF(Q22>Q23,180+ATAN(X22/R22)*57.2957795130823,0),0) -> 0 | AB22: =IF(P22<P23,IF(Q22>Q23,360-ATAN(X22/R22)*57.2957795130823,0),0) -> 316.7604103 | AC22: =IF(P22<P23,IF(Q22=Q23,0,0),0) -> 0 | AD22: =IF(P22>P23,IF(Q22=Q23,180,0),0) -> 0 | AE22: =IF(P22=P23,IF(Q22<Q23,90,0),0) -> 0 | AF22: =IF(P22=P23,IF(Q22>Q23,270,0),0) -> 0
A23: 45 | B23: 36 | C23: N | D23: 31 | E23: 52 | F23: E | G23: 270 | H23: 36.50250872 | I23: 440.2913321 | J23: 1598.562984 | K23: 03:39:00.903 | L23: 2.37279054e-14 | M23: 270 | N23: 0.3096048278 | O23: 10 | P23: 45.6 | Q23: 31.86666667 | R23: 0 | S23: 52 | T23: 45.6 | U23: 31.43333333 | V23: 1852.422176 | W23: 1300.347243 | X23: 36.50250872 | Y23: 0 | Z23: 0 | AA23: 0 | AB23: 0 | AC23: 0 | AD23: 0 | AE23: 0 | AF23: 270
A24: 45 | B24: 36 | C24: N | D24: 31 | E24: 0 | F24: E | G24: 210.6812973 | H24: 111.6254565 | I24: 476.7938409 | J24: 1562.060475 | K24: 11:09:45.164 | L24: 0.7805474566 | M24: 209.9007498 | N24: 0.46975614 | O24: 10 | P24: 45.6 | Q24: 31 | R24: 96 | S24: 80 | T24: 44.8 | U24: 30.33333333 | V24: 1852.161646 | W24: 1318.698635 | X24: 56.95825256 | Y24: 0 | Z24: 0 | AA24: 210.6812973 | AB24: 0 | AC24: 0 | AD24: 0 | AE24: 0 | AF24: 0
A25: 44 | B25: 0 | C25: N | D25: 29 | E25: 40 | F25: E | G25: 199.5691391 | H25: 109.3142074 | I25: 588.4192973 | J25: 1450.435019 | K25: 10:55:53.115 | L25: 0.8382225898 | M25: 198.7309165 | N25: 0.2849185758 | O25: 10 | P25: 44 | Q25: 29.66666667 | R25: 103 | S25: 50 | T25: 43.14166667 | U25: 29.25 | V25: 1851.622176 | W25: 1355.911421 | X25: 36.61414943 | Y25: 0 | Z25: 0 | AA25: 199.5691391 | AB25: 0 | AC25: 0 | AD25: 0 | AE25: 0 | AF25: 0
A26: 42 | B26: 17 | C26: N | D26: 28 | E26: 50 | F26: E | G26: 165.0278764 | H26: 57.03628866 | I26: 697.7335047 | J26: 1341.120811 | K26: 05:42:13.064 | L26: 0.8243899485 | M26: 164.2034865 | N26: 0.1094740235 | O26: 10 | P26: 42.28333333 | Q26: 28.83333333 | R26: 55.1 | S26: 19.7 | T26: 41.82416667 | U26: 28.9975 | V26: 1851.195124 | W26: 1384.663078 | X26: 14.73527143 | Y26: 0 | Z26: 165.0278764 | AA26: 0 | AB26: 0 | AC26: 0 | AD26: 0 | AE26: 0 | AF26: 0
A27: 41 | B27: 21.9 | C27: N | D27: 29 | E27: 9.7 | F27: E | G27: 190.2801699 | H27: 8.028888857 | I27: 754.7697934 | J27: 1284.084523 | K27: 00:48:10.400 | L27: 0.8321746131 | M27: 189.4479953 | N27: 0.0104498534 | O27: 10 | P27: 41.365 | Q27: 29.16166667 | R27: 7.9 | S27: 1.9 | T27: 41.29916667 | U27: 29.14583333 | V27: 1851.025555 | W27: 1395.915857 | X27: 1.432849008 | Y27: 0 | Z27: 0 | AA27: 190.2801699 | AB27: 0 | AC27: 0 | AD27: 0 | AE27: 0 | AF27: 0
A28: 41 | B28: 14 | C28: N | D28: 29 | E28: 7.8 | F28: E | G28: 206.0387362 | H28: 1.892047621 | I28: 762.7986823 | J28: 1276.055634 | K28: 00:11:21.137 | L28: 0.7628391757 | M28: 205.275897 | N28: 0.00604029362 | O28: 10 | P28: 41.23333333 | Q28: 29.13 | R28: 1.7 | S28: 1.1 | T28: 41.21916667 | U28: 29.12083333 | V28: 1850.999752 | W28: 1397.620248 | X28: 0.8305686004 | Y28: 0 | Z28: 0 | AA28: 206.0387362 | AB28: 0 | AC28: 0 | AD28: 0 | AE28: 0 | AF28: 0
A29: 41 | B29: 12.3 | C29: N | D29: 29 | E29: 6.7 | F29: E | G29: 232.889121 | H29: 0.662954764 | I29: 764.6907299 | J29: 1274.163586 | K29: 00:03:58.664 | L29: 0.5149978521 | M29: 232.3741232 | N29: 0.003842482856 | O29: 10 | P29: 41.205 | Q29: 29.11166667 | R29: 0.4 | S29: 0.7 | T29: 41.20166667 | U29: 29.10583333 | V29: 1850.994109 | W29: 1397.992719 | X29: 0.5286861253 | Y29: 0 | Z29: 0 | AA29: 232.889121 | AB29: 0 | AC29: 0 | AD29: 0 | AE29: 0 | AF29: 0
A30: 41 | B30: 11.9 | C30: N | D30: 29 | E30: 6 | F30: E | G30: 218.0403478 | H30: 1.777603948 | I30: 765.3536846 | J30: 1273.500631 | K30: 00:10:39.937 | L30: 0.6704266355 | M30: 217.3699211 | N30: 0.007957048364 | O30: 10 | P30: 41.19833333 | Q30: 29.1 | R30: 1.4 | S30: 1.45 | T30: 41.18666667 | U30: 29.08791667 | V30: 1850.989272 | W30: 1398.311875 | X30: 1.095388423 | Y30: 0 | Z30: 0 | AA30: 218.0403478 | AB30: 0 | AC30: 0 | AD30: 0 | AE30: 0 | AF30: 0
A31: 41 | B31: 10.5 | C31: N | D31: 29 | E31: 4.55 | F31: E | G31: 220.9914132 | H31: 1.32484041 | I31: 767.1312886 | J31: 1271.723027 | K31: 00:07:56.943 | L31: 0.6429113472 | M31: 220.3485018 | N31: 0.006308244609 | O31: 10 | P31: 41.175 | Q31: 29.07583333 | R31: 1 | S31: 1.15 | T31: 41.16666667 | U31: 29.06625 | V31: 1850.982824 | W31: 1398.737267 | X31: 0.8690236538 | Y31: 0 | Z31: 0 | AA31: 220.9914132 | AB31: 0 | AC31: 0 | AD31: 0 | AE31: 0 | AF31: 0
A32: 41 | B32: 9.5 | C32: N | D32: 29 | E32: 3.4 | F32: E | G32: 180 | H32: 0.55 | I32: 768.456129 | J32: 1270.398187 | K32: 00:03:18 | L32: 0.8435294702 | M32: 179.1564705 | N32: 0 | O32: 10 | P32: 41.15833333 | Q32: 29.05666667 | R32: 0.55 | S32: 0 | T32: 41.15375 | U32: 29.05666667 | V32: 1850.97866 | W32: 1399.011908 | X32: 0 | Y32: 0 | Z32: 0 | AA32: 0 | AB32: 0 | AC32: 0 | AD32: 180 | AE32: 0 | AF32: 0
A33: 41 | B33: 8.95 | C33: N | D33: 29 | E33: 3.4 | F33: E | G33: 145.8702737 | H33: 1.751695684 | I33: 769.006129 | J33: 1269.848187 | K33: 00:10:30.610 | L33: 0.6925273882 | M33: 145.1777463 | N33: 0.007126847369 | O33: 10 | P33: 41.14916667 | Q33: 29.05666667 | R33: 1.45 | S33: 1.3 | T33: 41.13708333 | U33: 29.0675 | V33: 1850.973287 | W33: 1399.366178 | X33: 0.9828213319 | Y33: 0 | Z33: 145.8702737 | AA33: 0 | AB33: 0 | AC33: 0 | AD33: 0 | AE33: 0 | AF33: 0
A34: 41 | B34: 7.5 | C34: N | D34: 29 | E34: 4.7 | F34: E | G34: 187.1831697 | H34: 0.3023731837 | I34: 770.7578247 | J34: 1268.096491 | K34: 00:01:48.854 | L34: 0.8384525242 | M34: 186.3447172 | N34: 0.0002740296328 | O34: 10 | P34: 41.125 | Q34: 29.07833333 | R34: 0.3 | S34: 0.05 | T34: 41.1225 | U34: 29.07791667 | V34: 1850.968587 | W34: 1399.676067 | X34: 0.03780928745 | Y34: 0 | Z34: 0 | AA34: 187.1831697 | AB34: 0 | AC34: 0 | AD34: 0 | AE34: 0 | AF34: 0
A35: 41 | B35: 7.2 | C35: N | D35: 29 | E35: 4.65 | F35: E | G35: 221.9269141 | H35: 1.075272059 | I35: 771.0601979 | J35: 1267.794118 | K35: 00:06:27.098 | L35: 0.6338190524 | M35: 221.293095 | N35: 0.005205608839 | O35: 10 | P35: 41.12 | Q35: 29.0775 | R35: 0.8 | S35: 0.95 | T35: 41.11333333 | U35: 29.06958333 | V35: 1850.965632 | W35: 1399.870808 | X35: 0.7184775579 | Y35: 0 | Z35: 0 | AA35: 221.9269141 | AB35: 0 | AC35: 0 | AD35: 0 | AE35: 0 | AF35: 0
A36: 41 | B36: 6.4 | C36: N | D36: 29 | E36: 3.7 | F36: E | G36: 195.8361517 | H36: 0.4157805334 | I36: 772.1354699 | J36: 1266.718846 | K36: 00:02:29.681 | L36: 0.8147876023 | M36: 195.0213641 | N36: 0.0008217738565 | O36: 10 | P36: 41.10666667 | Q36: 29.06166667 | R36: 0.4 | S36: 0.15 | T36: 41.10333333 | U36: 29.06041667 | V36: 1850.962409 | W36: 1400.083211 | X36: 0.1134612354 | Y36: 0 | Z36: 0 | AA36: 195.8361517 | AB36: 0 | AC36: 0 | AD36: 0 | AE36: 0 | AF36: 0
A37: 41 | B37: 6 | C37: N | D37: 29 | E37: 3.55 | F37: E | G37: 179.1154449 | H37: 0.9801168002 | I37: 772.5512505 | J37: 1266.303065 | K37: 00:05:52.842 | L37: 0.8432372954 | M37: 178.2722076 | N37: 0.0001095446383 | O37: 10 | P37: 41.1 | Q37: 29.05916667 | R37: 0.98 | S37: 0.02 | T37: 41.09183333 | U37: 29.05933333 | V37: 1850.958703 | W37: 1400.327422 | X37: 0.01513083376 | Y37: 0 | Z37: 179.1154449 | AA37: 0 | AB37: 0 | AC37: 0 | AD37: 0 | AE37: 0 | AF37: 0
A38: 41 | B38: 5.02 | C38: N | D38: 29 | E38: 3.57 | F38: E | G38: 219.6738413 | H38: 0.6755956965 | I38: 773.5313673 | J38: 1265.322949 | K38: 00:04:03.214 | L38: 0.6554174014 | M38: 219.0184239 | N38: 0.00312124111 | O38: 10 | P38: 41.08366667 | Q38: 29.0595 | R38: 0.52 | S38: 0.57 | T38: 41.07933333 | U38: 29.05475 | V38: 1850.954675 | W38: 1400.592804 | X38: 0.4313114248 | Y38: 0 | Z38: 0 | AA38: 219.6738413 | AB38: 0 | AC38: 0 | AD38: 0 | AE38: 0 | AF38: 0
A39: 41 | B39: 4.5 | C39: N | D39: 29 | E39: 3 | F39: E | G39: 196.3680086 | H39: 1.396602233 | I39: 774.206963 | J39: 1264.647353 | K39: 00:08:22.777 | L39: 0.8127142904 | M39: 195.5552943 | N39: 0.002846564262 | O39: 10 | P39: 41.075 | Q39: 29.05 | R39: 1.34 | S39: 0.52 | T39: 41.06383333 | U39: 29.04566667 | V39: 1850.94968 | W39: 1400.921784 | X39: 0.3935705739 | Y39: 0 | Z39: 0 | AA39: 196.3680086 | AB39: 0 | AC39: 0 | AD39: 0 | AE39: 0 | AF39: 0
A40: 41 | B40: 3.16 | C40: N | D40: 29 | E40: 2.48 | F40: E | G40: 233.5050707 | H40: 2.505247391 | I40: 775.6035652 | J40: 1263.250751 | K40: 00:15:01.889 | L40: 0.5076993885 | M40: 232.9973714 | N40: 0.01455439054 | O40: 10 | P40: 41.05266667 | Q40: 29.04133333 | R40: 1.49 | S40: 2.66 | T40: 41.04025 | U40: 29.01916667 | V40: 1850.942082 | W40: 1401.422133 | X40: 2.013992178 | Y40: 0 | Z40: 0 | AA40: 233.5050707 | AB40: 0 | AC40: 0 | AD40: 0 | AE40: 0 | AF40: 0
A41: 41 | B41: 1.67 | C41: N | D41: 28 | E41: 59.82 | F41: E | G41: 206.2091598 | H41: 0.4458375504 | I41: 778.1088126 | J41: 1260.745503 | K41: 00:02:40.502 | L41: 0.7617573687 | M41: 205.4474024 | N41: 0.001422160322 | O41: 10 | P41: 41.02783333 | Q41: 28.997 | R41: 0.4 | S41: 0.26 | T41: 41.0245 | U41: 28.99483333 | V41: 1850.937007 | W41: 1401.756155 | X41: 0.1969038378 | Y41: 0 | Z41: 0 | AA41: 206.2091598 | AB41: 0 | AC41: 0 | AD41: 0 | AE41: 0 | AF41: 0
A42: 41 | B42: 1.27 | C42: N | D42: 28 | E42: 59.56 | F42: E | G42: 181.4709779 | H42: 1.770583485 | I42: 778.5546501 | J42: 1260.299666 | K42: 00:10:37.410 | L42: 0.8435703023 | M42: 180.6274076 | N42: 0.0003280717731 | O42: 10 | P42: 41.02116667 | Q42: 28.99266667 | R42: 1.77 | S42: 0.06 | T42: 41.00641667 | U42: 28.99216667 | V42: 1850.931182 | W42: 1402.139531 | X42: 0.04545191775 | Y42: 0 | Z42: 0 | AA42: 181.4709779 | AB42: 0 | AC42: 0 | AD42: 0 | AE42: 0 | AF42: 0
A43: 40 | B43: 59.5 | C43: N | D43: 28 | E43: 59.5 | F43: E | G43: 217.1530672 | H43: 0.6273329755 | I43: 780.3252336 | J43: 1258.529082 | K43: 00:03:45.840 | L43: 0.6682195939 | M43: 216.4848476 | N43: 0.002732893172 | O43: 10 | P43: 40.99166667 | Q43: 28.99166667 | R43: 0.5 | S43: 0.5 | T43: 40.9875 | U43: 28.9875 | V43: 1850.925089 | W43: 1402.540423 | X43: 0.3788755233 | Y43: 0 | Z43: 0 | AA43: 217.1530672 | AB43: 0 | AC43: 0 | AD43: 0 | AE43: 0 | AF43: 0
A44: 40 | B44: 59 | C44: N | D44: 28 | E44: 59 | F44: E | G44: 225.3007435 | H44: 1.70603465 | I44: 780.9525666 | J44: 1257.901749 | K44: 00:10:14.172 | L44: 0.5906365886 | M44: 224.7101069 | N44: 0.008742769335 | O44: 10 | P44: 40.98333333 | Q44: 28.98333333 | R44: 1.2 | S44: 1.6 | T44: 40.97333333 | U44: 28.97 | V44: 1850.920526 | W44: 1402.84055 | X44: 1.212664104 | Y44: 0 | Z44: 0 | AA44: 225.3007435 | AB44: 0 | AC44: 0 | AD44: 0 | AE44: 0 | AF44: 0
A45: 40 | B45: 57.8 | C45: N | D45: 28 | E45: 57.4 | F45: E | G45: 235.559185 | H45: 4.597256996 | I45: 782.6586012 | J45: 1256.195715 | K45: 00:27:35.013 | L45: 0.4756933622 | M45: 235.0834917 | N45: 0.02730376303 | O45: 10 | P45: 40.96333333 | Q45: 28.95666667 | R45: 2.6 | S45: 5 | T45: 40.94166667 | U45: 28.915 | V45: 1850.910328 | W45: 1403.511111 | X45: 3.79140764 | Y45: 0 | Z45: 0 | AA45: 235.559185 | AB45: 0 | AC45: 0 | AD45: 0 | AE45: 0 | AF45: 0
A46: 40 | B46: 55.2 | C46: N | D46: 28 | E46: 52.4 | F46: E | G46: 261.5541731 | H46: 21.78734802 | I46: 787.2558582 | J46: 1251.598458 | K46: 02:10:43.445 | L46: 0.1238362567 | M46: 261.4303368 | N46: 0.1549345106 | O46: 10 | P46: 40.92 | Q46: 28.87333333 | R46: 3.2 | S46: 28.4 | T46: 40.89333333 | U46: 28.63666667 | V46: 1850.894766 | W46: 1404.533769 | X46: 21.55106804 | Y46: 0 | Z46: 0 | AA46: 261.5541731 | AB46: 0 | AC46: 0 | AD46: 0 | AE46: 0 | AF46: 0
A47: 40 | B47: 52 | C47: N | D47: 28 | E47: 24 | F47: E | G47: 260.9920948 | H47: 35.76658158 | I47: 809.0432063 | J47: 1229.81111 | K47: 03:34:35.969 | L47: 0.1320089233 | M47: 260.8600859 | N47: 0.2533028621 | O47: 10 | P47: 40.86666667 | Q47: 28.4 | R47: 5.6 | S47: 46.5 | T47: 40.82 | U47: 28.0125 | V47: 1850.871162 | W47: 1406.083469 | X47: 35.32546331 | Y47: 0 | Z47: 0 | AA47: 260.9920948 | AB47: 0 | AC47: 0 | AD47: 0 | AE47: 0 | AF47: 0
A48: 40 | B48: 46.4 | C48: N | D48: 27 | E48: 37.5 | F48: E | G48: 243.2429148 | H48: 31.98515436 | I48: 844.8097878 | J48: 1194.044528 | K48: 03:11:54.656 | L48: 0.3790545143 | M48: 242.8638603 | N48: 0.2035877178 | O48: 10 | P48: 40.77333333 | Q48: 27.625 | R48: 14.4 | S48: 37.5 | T48: 40.65333333 | U48: 27.3125 | V48: 1850.817551 | W48: 1409.596904 | X48: 28.56028886 | Y48: 0 | Z48: 0 | AA48: 243.2429148 | AB48: 0 | AC48: 0 | AD48: 0 | AE48: 0 | AF48: 0
A49: 40 | B49: 32 | C49: N | D49: 27 | E49: 0 | F49: E | G49: 243.0622536 | H49: 12.84705462 | I49: 876.7949422 | J49: 1162.059374 | K49: 01:17:04.940 | L49: 0.3814151667 | M49: 242.6808384 | N49: 0.08115584248 | O49: 10 | P49: 40.53333333 | Q49: 27 | R49: 5.82 | S49: 15 | T49: 40.48483333 | U49: 26.875 | V49: 1850.763403 | W49: 1413.136805 | X49: 11.45313985 | Y49: 0 | Z49: 0 | AA49: 243.0622536 | AB49: 0 | AC49: 0 | AD49: 0 | AE49: 0 | AF49: 0
A50: 40 | B50: 26.18 | C50: N | D50: 26 | E50: 45 | F50: E | G50: 234.7562365 | H50: 4.089722282 | I50: 889.6419968 | J50: 1149.212319 | K50: 00:24:32.300 | L50: 0.485310479 | M50: 234.270926 | N50: 0.02361043251 | O50: 10 | P50: 40.43633333 | Q50: 26.75 | R50: 2.36 | S50: 4.37 | T50: 40.41666667 | U50: 26.71358333 | V50: 1850.741512 | W50: 1414.565386 | X50: 3.340094063 | Y50: 0 | Z50: 0 | AA50: 234.7562365 | AB50: 0 | AC50: 0 | AD50: 0 | AE50: 0 | AF50: 0
A51: 40 | B51: 23.82 | C51: N | D51: 26 | E51: 40.63 | F51: E | G51: 217.9141682 | H51: 6.299654467 | I51: 893.7317191 | J51: 1145.122597 | K51: 00:37:47.876 | L51: 0.6615366729 | M51: 217.2526315 | N51: 0.02730415421 | O51: 10 | P51: 40.397 | Q51: 26.67716667 | R51: 4.97 | S51: 5.06 | T51: 40.35558333 | U51: 26.635 | V51: 1850.721903 | W51: 1415.843811 | X51: 3.871013614 | Y51: 0 | Z51: 0 | AA51: 217.9141682 | AB51: 0 | AC51: 0 | AD51: 0 | AE51: 0 | AF51: 0
A52: 40 | B52: 18.85 | C52: N | D52: 26 | E52: 35.57 | F52: E | G52: 231.8555089 | H52: 5.423812171 | I52: 900.0313736 | J52: 1138.822942 | K52: 00:32:32.572 | L52: 0.5192169528 | M52: 231.3362919 | N52: 0.03001332922 | O52: 10 | P52: 40.31416667 | Q52: 26.59283333 | R52: 3.35 | S52: 5.57 | T52: 40.28625 | U52: 26.54641667 | V52: 1850.699655 | W52: 1417.292943 | X52: 4.265587704 | Y52: 0 | Z52: 0 | AA52: 231.8555089 | AB52: 0 | AC52: 0 | AD52: 0 | AE52: 0 | AF52: 0
A53: 40 | B53: 15.5 | C53: N | D53: 26 | E53: 30 | F53: E | G53: 234.6321218 | H53: 4.699182399 | I53: 905.4551857 | J53: 1133.39913 | K53: 00:28:11.706 | L53: 0.4867882697 | M53: 234.1453335 | N53: 0.02691387609 | O53: 10 | P53: 40.25833333 | Q53: 26.5 | R53: 2.72 | S53: 5 | T53: 40.23566667 | U53: 26.45833333 | V53: 1850.683429 | W53: 1418.348867 | X53: 3.83195971 | Y53: 0 | Z53: 0 | AA53: 234.6321218 | AB53: 0 | AC53: 0 | AD53: 0 | AE53: 0 | AF53: 0
A54: 40 | B54: 12.78 | C54: N | D54: 26 | E54: 25 | F54: E | G54: 241.8503351 | H54: 2.034862509 | I54: 910.1543681 | J54: 1128.699948 | K54: 00:12:12.551 | L54: 0.3971479192 | M54: 241.4531871 | N54: 0.01258772461 | O54: 10 | P54: 40.213 | Q54: 26.41666667 | R54: 0.96 | S54: 2.34 | T54: 40.205 | U54: 26.39716667 | V54: 1850.673594 | W54: 1418.988492 | X54: 1.794175418 | Y54: 0 | Z54: 0 | AA54: 241.8503351 | AB54: 0 | AC54: 0 | AD54: 0 | AE54: 0 | AF54: 0
A55: 40 | B55: 11.82 | C55: N | D55: 26 | E55: 22.66 | F55: E | G55: 172.9199891 | H55: 3.174203303 | I55: 912.1892307 | J55: 1126.665085 | K55: 00:19:02.713 | L55: 0.8232395947 | M55: 172.0967495 | N55: 0.002741537636 | O55: 10 | P55: 40.197 | Q55: 26.37766667 | R55: 3.15 | S55: 0.51 | T55: 40.17075 | U55: 26.38191667 | V55: 1850.662613 | W55: 1419.702372 | X55: 0.3912372815 | Y55: 0 | Z55: 172.9199891 | AA55: 0 | AB55: 0 | AC55: 0 | AD55: 0 | AE55: 0 | AF55: 0
A56: 40 | B56: 8.67 | C56: N | D56: 26 | E56: 23.17 | F56: E | G56: 202.7961187 | H56: 0.4555861037 | I56: 915.363434 | J56: 1123.490882 | K56: 00:02:44.011 | L56: 0.7704643004 | M56: 202.0256544 | N56: 0.001235619093 | O56: 10 | P56: 40.1445 | Q56: 26.38616667 | R56: 0.42 | S56: 0.23 | T56: 40.141 | U56: 26.38425 | V56: 1850.653076 | W56: 1420.322044 | X56: 0.1765182651 | Y56: 0 | Z56: 0 | AA56: 202.7961187 | AB56: 0 | AC56: 0 | AD56: 0 | AE56: 0 | AF56: 0
A57: 40 | B57: 8.25 | C57: N | D57: 26 | E57: 22.94 | F57: E | G57: 227.635181 | H57: 0.5194043293 | I57: 915.8190201 | J57: 1123.035296 | K57: 00:03:06.986 | L57: 0.5660672983 | M57: 227.0691137 | N57: 0.002685771723 | O57: 10 | P57: 40.1375 | Q57: 26.38233333 | R57: 0.35 | S57: 0.5 | T57: 40.13458333 | U57: 26.37816667 | V57: 1850.651019 | W57: 1420.455649 | X57: 0.3837718819 | Y57: 0 | Z57: 0 | AA57: 227.635181 | AB57: 0 | AC57: 0 | AD57: 0 | AE57: 0 | AF57: 0
A58: 40 | B58: 7.9 | C58: N | D58: 26 | E58: 22.44 | F58: E | G58: 226.6442106 | H58: 4.224162209 | I58: 916.3384244 | J58: 1122.515892 | K58: 00:25:20.698 | L58: 0.5766178652 | M58: 226.0675927 | N58: 0.02147412507 | O58: 10 | P58: 40.13166667 | Q58: 26.374 | R58: 2.9 | S58: 4 | T58: 40.1075 | U58: 26.34066667 | V58: 1850.642339 | W58: 1421.019366 | X58: 3.071407881 | Y58: 0 | Z58: 0 | AA58: 226.6442106 | AB58: 0 | AC58: 0 | AD58: 0 | AE58: 0 | AF58: 0
A59: 40 | B59: 5 | C59: N | D59: 26 | E59: 18.44 | F59: E | G59: 236.106567 | H59: 4.572760913 | I59: 920.5625866 | J59: 1118.291729 | K59: 00:27:26.194 | L59: 0.4690816235 | M59: 235.6374854 | N59: 0.02649557828 | O59: 10 | P59: 40.08333333 | Q59: 26.30733333 | R59: 2.55 | S59: 4.94 | T59: 40.06208333 | U59: 26.26616667 | V59: 1850.627787 | W59: 1421.963961 | X59: 3.795740029 | Y59: 0 | Z59: 0 | AA59: 236.106567 | AB59: 0 | AC59: 0 | AD59: 0 | AE59: 0 | AF59: 0
A60: 40 | B60: 2.45 | C60: N | D60: 26 | E60: 13.5 | F60: E | G60: 249.6100271 | H60: 1.951734682 | I60: 925.1353475 | J60: 1113.718968 | K60: 00:11:42.624 | L60: 0.2935346264 | M60: 249.3164925 | N60: 0.01275794373 | O60: 10 | P60: 40.04083333 | Q60: 26.225 | R60: 0.68 | S60: 2.38 | T60: 40.03516667 | U60: 26.20516667 | V60: 1850.619164 | W60: 1422.523362 | X60: 1.829444798 | Y60: 0 | Z60: 0 | AA60: 249.6100271 | AB60: 0 | AC60: 0 | AD60: 0 | AE60: 0 | AF60: 0
A61: 40 | B61: 1.77 | C61: N | D61: 26 | E61: 11.12 | F61: E | G61: 262.7179903 | H61: 5.285864364 | I61: 927.0870822 | J61: 1111.767234 | K61: 00:31:42.911 | L61: 0.1068756471 | M61: 262.6111146 | N61: 0.03654993266 | O61: 10 | P61: 40.0295 | Q61: 26.18533333 | R61: 0.67 | S61: 6.82 | T61: 40.02391667 | U61: 26.1285 | V61: 1850.615561 | W61: 1422.757074 | X61: 5.243230118 | Y61: 0 | Z61: 0 | AA61: 262.7179903 | AB61: 0 | AC61: 0 | AD61: 0 | AE61: 0 | AF61: 0
A62: 40 | B62: 1.1 | C62: N | D62: 26 | E62: 4.3 | F62: E | G62: 264.5967128 | H62: 4.247843342 | I62: 932.3729466 | J62: 1106.481369 | K62: 00:25:29.224 | L62: 0.07940258115 | M62: 264.5173102 | N62: 0.02947028964 | O62: 10 | P62: 40.01833333 | Q62: 26.07166667 | R62: 0.4 | S62: 5.5 | T62: 40.015 | U62: 26.02583333 | V62: 1850.612705 | W62: 1422.942273 | X62: 4.228968321 | Y62: 0 | Z62: 0 | AA62: 264.5967128 | AB62: 0 | AC62: 0 | AD62: 0 | AE62: 0 | AF62: 0
A63: 40 | B63: 0.7 | C63: N | D63: 25 | E63: 58.8 | F63: E | G63: 223.6164697 | H63: 20.9952407 | I63: 936.6207899 | J63: 1102.233526 | K63: 02:05:58.287 | L63: 0.607737673 | M63: 223.008732 | N63: 0.1004623067 | O63: 10 | P63: 40.01166667 | Q63: 25.98 | R63: 15.2 | S63: 18.8 | T63: 39.885 | U63: 25.82333333 | V63: 1850.571086 | W63: 1425.63844 | X63: 14.48309815 | Y63: 0 | Z63: 0 | AA63: 223.6164697 | AB63: 0 | AC63: 0 | AD63: 0 | AE63: 0 | AF63: 0
A64: 39 | B64: 45.5 | C64: N | D64: 25 | E64: 40 | F64: E | G64: 176.4802646 | H64: 50.59543761 | I64: 957.6160306 | J64: 1081.238285 | K64: 05:03:34.358 | L64: 0.8169143346 | M64: 175.6633502 | N64: 0.02112957381 | O64: 10 | P64: 39.75833333 | Q64: 25.66666667 | R64: 50.5 | S64: 4 | T64: 39.3375 | U64: 25.7 | V64: 1850.396209 | W64: 1436.912402 | X64: 3.106172387 | Y64: 0 | Z64: 176.4802646 | AA64: 0 | AB64: 0 | AC64: 0 | AD64: 0 | AE64: 0 | AF64: 0
A65: 38 | B65: 55 | C65: N | D65: 25 | E65: 44 | F65: E | G65: 180 | H65: 23 | I65: 1008.211468 | J65: 1030.642848 | K65: 02:18:00 | L65: 0.8078820872 | M65: 179.1921179 | N65: 0 | O65: 10 | P65: 38.91666667 | Q65: 25.73333333 | R65: 23 | S65: 0 | T65: 38.725 | U65: 25.73333333 | V65: 1850.201397 | W65: 1449.368656 | X65: 0 | Y65: 0 | Z65: 0 | AA65: 0 | AB65: 0 | AC65: 0 | AD65: 180 | AE65: 0 | AF65: 0
A66: 38 | B66: 32 | C66: N | D66: 25 | E66: 44 | F66: E | G66: 172.0100938 | H66: 62.60776036 | I66: 1031.211468 | J66: 1007.642848 | K66: 06:15:38.794 | L66: 0.7984746919 | M66: 171.2116191 | N66: 0.05645664496 | O66: 10 | P66: 38.53333333 | Q66: 25.73333333 | R66: 62 | S66: 11 | T66: 38.01666667 | U66: 25.825 | V66: 1849.977306 | W66: 1463.56645 | X66: 8.702393757 | Y66: 0 | Z66: 172.0100938 | AA66: 0 | AB66: 0 | AC66: 0 | AD66: 0 | AE66: 0 | AF66: 0
A67: 37 | B67: 30 | C67: N | D67: 25 | E67: 55 | F67: E | G67: 155.436992 | H67: 38.48248462 | I67: 1093.819229 | J67: 945.0350874 | K67: =H67/O67/24 -> 03:50:53.694 | L67: 0.7208285646 | M67: 154.7161634 | N67: 0.1007858265 | O67: 10 | P67: 37.5 | Q67: 25.91666667 | R67: 35 | S67: 20 | T67: 37.20833333 | U67: 26.08333333 | V67: 1849.723319 | W67: 1479.494297 | X67: 15.9969254 | Y67: 0 | Z67: 155.436992 | AA67: 0 | AB67: 0 | AC67: 0 | AD67: 0 | AE67: 0 | AF67: 0
A68: 36 | B68: 55 | C68: =C67 -> N | D68: 26 | E68: 15 | F68: =F67 -> E | G68: 133.3994315 | H68: 94.60320693 | I68: =IF(J67>0,H67+I67,0) -> 1132.301713 | J68: 906.5526027 | K68: 09:27:37.154 | L68: 0.5353251664 | M68: 132.8641064 | N68: 0.4200895705 | O68: 10 | P68: 36.91666667 | Q68: 26.25 | R68: 65 | S68: 85 | T68: 36.375 | U68: 26.95833333 | V68: 1849.463624 | W68: 1495.605506 | X68: 68.73693884 | Y68: 0 | Z68: 133.3994315 | AA68: 0 | AB68: 0 | AC68: 0 | AD68: 0 | AE68: 0 | AF68: 0
A69: 35 | B69: 50 | C69: N | D69: 27 | E69: 40 | F69: E | G69: 86.94049875 | H69: 187.3606602 | I69: 1226.90492 | J69: 811.9493958 | K69: 18:44:09.838 | L69: -0.04092552258 | M69: 86.98142428 | N69: 1.12433193 | O69: 10 | P69: 35.83333333 | Q69: 27.66666667 | R69: 10 | S69: 230 | T69: 35.91666667 | U69: 29.58333333 | V69: 1849.321798 | W69: 1504.33166 | X69: 187.0936048 | Y69: 86.94049875 | Z69: 0 | AA69: 0 | AB69: 0 | AC69: 0 | AD69: 0 | AE69: 0 | AF69: 0
A70: 36 | C70: N | D70: 31 | E70: 30 | F70: E | G70: 95.55493825 | H70: 154.958442 | I70: 1414.26558 | J70: 624.5887357 | K70: 15:29:45.039 | L70: 0.07514534419 | M70: 95.4797929 | N70: 0.9254214396 | O70: 10 | P70: 36 | Q70: 31.5 | R70: 15 | S70: 189.5 | T70: 35.875 | U70: 33.07916667 | V70: 1849.308942 | W70: 1505.120169 | X70: 154.2307321 | Y70: 0 | Z70: 95.55493825 | AA70: 0 | AB70: 0 | AC70: 0 | AD70: 0 | AE70: 0 | AF70: 0
A71: 35 | B71: 45 | C71: N | D71: 34 | E71: 39.5 | F71: E | G71: 170.8594472 | H71: 106.350479 | I71: 1569.224022 | J71: 469.6302937 | K71: 10:38:06.172 | L71: 0.7656506552 | M71: 170.0937965 | N71: 0.09768044321 | O71: 10 | P71: 35.75 | Q71: 34.65833333 | R71: 105 | S71: 20.5 | T71: 34.875 | U71: 34.82916667 | V71: 1849.002353 | W71: 1523.804091 | X71: 16.89450736 | Y71: 0 | Z71: 170.8594472 | AA71: 0 | AB71: 0 | AC71: 0 | AD71: 0 | AE71: 0 | AF71: 0
A72: 34 | C72: N | D72: 35 | F72: E | G72: 205.3178878 | H72: 146.5790523 | I72: 1675.574501 | J72: 363.2798147 | K72: 14:39:28.459 | L72: 0.6981458485 | M72: 204.619742 | N72: 0.3362777071 | O72: 10 | P72: 34 | Q72: 35 | R72: 132.5 | S72: 74.3 | T72: 32.89583333 | U72: 34.38083333 | V72: 1848.407725 | W72: 1559.406326 | X72: 62.68308036 | Y72: 0 | Z72: 0 | AA72: 205.3178878 | AB72: 0 | AC72: 0 | AD72: 0 | AE72: 0 | AF72: 0
A73: 31 | B73: 47.5 | C73: N | D73: 33 | E73: 45.7 | F73: E | G73: =IF(H73=0,"END",Y73+Z73+AA73+AB73+AC73+AD73+AE73+AF73) -> 268.9567519 | H73: =SQRT(R73*R73+X73*X73) -> 137.3090084 | I73: 1822.153553 | J73: =J74+H73 -> 216.7007625 | K73: 13:43:51.243 | L73: =IF(H73=0,"END",-57.2957795130823*(O73*COS(G73*0.0174532925199432)/(900*COS(A73*0.0174532925199432)+O73*SIN(G73*0.0174532925199432)))) -> 0.01370001203 | M73: =IF(H73=0,"END",G73-L73) -> 268.9430519 | N73: =ABS(Q73-Q74)/2*SIN(T73*0.0174532925199432) -> 0.7051021655 | O73: =O72 -> 10 | P73: 31.79166667 | Q73: 33.76166667 | R73: 2.5 | S73: 160.7 | T73: 31.77083333 | U73: 32.4225 | V73: 1848.077796 | W73: 1578.815593 | X73: 137.2862476 | Y73: 0 | Z73: 0 | AA73: 268.9567519 | AB73: 0 | AC73: 0 | AD73: 0 | AE73: 0 | AF73: 0
A74: 31 | B74: 45 | C74: N | D74: 31 | E74: 5 | F74: E | G74: 261.543018 | H74: 40.79778391 | I74: 1959.462562 | J74: 79.39175411 | K74: 04:04:47.202 | L74: 0.1106454554 | M74: 261.4323725 | N74: 0.2066855161 | O74: 10 | P74: 31.75 | Q74: 31.08333333 | R74: 6 | S74: 47.2 | T74: 31.7 | U74: 30.69 | V74: 1848.057234 | W74: 1580.01735 | X74: 40.35417168 | Y74: 0 | Z74: 0 | AA74: 261.543018 | AB74: 0 | AC74: 0 | AD74: 0 | AE74: 0 | AF74: 0
A75: 31 | B75: 39 | C75: N | D75: 30 | E75: 17.8 | F75: E | G75: 224.6782705 | H75: 36.80388764 | I75: 2000.260346 | J75: 38.5939702 | K75: 03:40:49.400 | L75: 0.5329678402 | M75: 224.1453027 | N75: 0.1311534831 | O75: 10 | P75: 31.65 | Q75: 30.29666667 | R75: 26.17 | S75: 30.18 | T75: 31.43191667 | U75: 30.04516667 | V75: 1847.979649 | W75: 1584.54375 | X75: 25.87773648 | Y75: 0 | Z75: 0 | AA75: 224.6782705 | AB75: 0 | AC75: 0 | AD75: 0 | AE75: 0 | AF75: 0
A76: 31 | B76: 12.83 | C76: N | D76: 29 | E76: 47.62 | F76: E | G76: 179.4497269 | H76: 1.790082556 | I76: 2037.064233 | J76: 1.790082556 | K76: 00:10:44.430 | L76: 0.7425751907 | M76: 178.7071517 | N76: 8.633513938e-05 | O76: 10 | P76: 31.21383333 | Q76: 29.79366667 | R76: 1.79 | S76: 0.02 | T76: 31.19891667 | U76: 29.79383333 | V76: 1847.912523 | W76: 1588.449604 | X76: 0.01719182682 | Y76: 0 | Z76: 179.4497269 | AA76: 0 | AB76: 0 | AC76: 0 | AD76: 0 | AE76: 0 | AF76: 0
A77: 31 | B77: 11.04 | C77: N | D77: 29 | E77: 47.64 | F77: E | G77: END | H77: 0 | I77: 2038.854316 | J77: 0 | K77: 00:00:00 | L77: END | M77: END | N77: 4.004095137 | O77: 10 | P77: 31.184 | Q77: 29.794 | R77: 0 | S77: 0 | T77: 15.592 | U77: 14.897 | V77: 1844.27385 | W77: 1787.510312 | X77: 0 | Y77: 0 | Z77: 0 | AB77: 0 | AC77: 0 | AD77: 0 | AE77: 0 | AF77: 0
C78: N | F78: E | G78: END | H78: 0 | I78: 0 | J78: 0 | K78: 00:00:00 | L78: END | M78: END | N78: 0 | O78: 10 | P78: 0 | Q78: 0 | R78: 0 | S78: 0 | T78: 0 | U78: 0 | V78: 1842.936259 | W78: 1855.354932 | X78: 0 | Y78: 0 | Z78: 0 | AA78: 0 | AB78: 0 | AC78: 0 | AD78: 0 | AE78: 0 | AF78: 0
C79: N | F79: E | G79: END | H79: 0 | I79: 0 | J79: 0 | K79: 00:00:00 | L79: END | M79: END | N79: 0 | O79: 10 | P79: 0 | Q79: 0 | R79: 0 | S79: 0 | T79: 0 | U79: 0 | V79: 1842.936259 | W79: 1855.354932 | X79: 0 | Y79: 0 | Z79: 0 | AA79: 0 | AB79: 0 | AC79: 0 | AD79: 0 | AE79: 0 | AF79: 0
C80: N | F80: E | G80: END | H80: 0 | I80: 0 | J80: 0 | K80: 00:00:00 | L80: END | M80: END | N80: 0 | O80: 10 | P80: 0 | Q80: 0 | R80: 0 | S80: 0 | T80: 0 | U80: 0 | V80: 1842.936259 | W80: 1855.354932 | X80: 0 | Y80: 0 | Z80: 0 | AA80: 0 | AB80: 0 | AC80: 0 | AD80: 0 | AE80: 0 | AF80: 0
C81: N | F81: E | G81: END | H81: 0 | I81: 0 | J81: 0 | K81: 00:00:00 | L81: END | M81: END | N81: 0 | O81: 10 | P81: 0 | Q81: 0 | R81: 0 | S81: 0 | T81: 0 | U81: 0 | V81: 1842.936259 | W81: 1855.354932 | X81: 0 | Y81: 0 | Z81: 0 | AA81: 0 | AB81: 0 | AC81: 0 | AD81: 0 | AE81: 0 | AF81: 0
C82: N | F82: E | G82: END | H82: 0 | I82: 0 | J82: 0 | K82: 00:00:00 | L82: END | M82: END | N82: 0 | O82: 10 | P82: 0 | Q82: 0 | R82: 0 | S82: 0 | T82: 0 | U82: 0 | V82: 1842.936259 | W82: 1855.354932 | X82: 0 | Y82: 0 | Z82: 0 | AA82: 0 | AB82: 0 | AC82: 0 | AD82: 0 | AE82: 0 | AF82: 0
C83: N | F83: E | G83: END | H83: 0 | I83: 0 | J83: 0 | K83: 00:00:00 | L83: END | M83: END | N83: 0 | O83: 10 | P83: 0 | Q83: 0 | R83: 0 | S83: 0 | T83: 0 | U83: 0 | V83: 1842.936259 | W83: 1855.354932 | X83: 0 | Y83: 0 | Z83: 0 | AA83: 0 | AB83: 0 | AC83: 0 | AD83: 0 | AE83: 0 | AF83: 0
C84: N | F84: E | G84: END | H84: 0 | I84: 0 | J84: 0 | K84: 00:00:00 | L84: END | M84: END | N84: 0 | O84: 10 | P84: 0 | Q84: 0 | R84: 0 | S84: 0 | T84: 0 | U84: 0 | V84: 1842.936259 | W84: 1855.354932 | X84: 0 | Y84: 0 | Z84: 0 | AA84: 0 | AB84: 0 | AC84: 0 | AD84: 0 | AE84: 0 | AF84: 0
C85: N | F85: E | G85: END | H85: 0 | I85: 0 | J85: 0 | K85: 00:00:00 | L85: END | M85: END | N85: 0 | O85: 10 | P85: 0 | Q85: 0 | R85: 0 | S85: 0 | T85: 0 | U85: 0 | V85: 1842.936259 | W85: 1855.354932 | X85: 0 | Y85: 0 | Z85: 0 | AA85: 0 | AB85: 0 | AC85: 0 | AD85: 0 | AE85: 0 | AF85: 0
C86: N | F86: E | G86: END | H86: 0 | I86: 0 | J86: 0 | K86: 00:00:00 | L86: END | M86: END | N86: 0 | O86: 10 | P86: =IF(C86="N",B86/60+A86,IF(C86="n",B86/60+A86,IF(C86="s",-(B86/60+A86),IF(C86="S",-(B86/60+A86),"ERROR") ) )) -> 0 | Q86: =IF(F86="E",E86/60+D86,IF(F86="e",E86/60+D86,IF(F86="w",-(E86/60+D86),IF(F86="W",-(E86/60+D86),"ERROR") ) )) -> 0 | R86: =IF(P87>0,ABS((P86*60)-(P87*60)),0) -> 0 | S86: =IF(Q87>0,ABS((Q86*60)-(Q87*60)),0) -> 0 | T86: =(P86+P87)/2 -> 0 | U86: =(Q86+Q87)/2 -> 0 | V86: =1842.93625878542/POWER((1-0.0066934216*SIN(T86*0.0174532925199432)*SIN(T86*0.0174532925199432)),3/2) -> 1842.936259 | W86: =(6378245*COS(T86*0.0174532925199432)*0.000290888)/SQRT(1-0.0066934216*SIN(T86*0.0174532925199432)*SIN(T86*0.0174532925199432)) -> 1855.354932 | X86: =S86*W86/V86 -> 0 | Y86: =IF(P86<P87,IF(Q86<Q87,ATAN(X86/R86)*57.2957795130823,0),0) -> 0 | Z86: =IF(P86>P87,IF(Q86<Q87,180-ATAN(X86/R86)*57.2957795130823,0),0) -> 0 | AA86: =IF(P86>P87,IF(Q86>Q87,180+ATAN(X86/R86)*57.2957795130823,0),0) -> 0 | AB86: =IF(P86<P87,IF(Q86>Q87,360-ATAN(X86/R86)*57.2957795130823,0),0) -> 0 | AC86: =IF(P86<P87,IF(Q86=Q87,0,0),0) -> 0 | AD86: =IF(P86>P87,IF(Q86=Q87,180,0),0) -> 0 | AE86: =IF(P86=P87,IF(Q86<Q87,90,0),0) -> 0 | AF86: =IF(P86=P87,IF(Q86>Q87,270,0),0) -> 0
C87: N | F87: E | G87: END | H87: 0 | I87: 0 | J87: 0 | K87: 00:00:00 | L87: END | M87: END | N87: 0 | O87: 10 | P87: 0 | Q87: 0 | R87: 0 | S87: 0 | T87: 0 | U87: 0 | V87: 1842.936259 | W87: 1855.354932 | X87: 0 | Y87: 0 | Z87: 0 | AA87: 0 | AB87: 0 | AC87: 0 | AD87: 0 | AE87: 0 | AF87: 0
C88: N | F88: E | G88: END | H88: 0 | I88: 0 | J88: 0 | K88: 00:00:00 | L88: END | M88: END | N88: 0 | O88: 10 | P88: 0 | Q88: 0 | R88: 0 | S88: 0 | T88: 0 | U88: 0 | V88: 1842.936259 | W88: 1855.354932 | X88: 0 | Y88: 0 | Z88: 0 | AA88: 0 | AB88: 0 | AC88: 0 | AD88: 0 | AE88: 0 | AF88: 0
C89: N | F89: E | G89: END | H89: 0 | I89: 0 | J89: 0 | K89: 00:00:00 | L89: END | M89: END | N89: 0 | O89: 10 | P89: 0 | Q89: 0 | R89: 0 | S89: 0 | T89: 0 | U89: 0 | V89: 1842.936259 | W89: 1855.354932 | X89: 0 | Y89: 0 | Z89: 0 | AA89: 0 | AB89: 0 | AC89: 0 | AD89: 0 | AE89: 0 | AF89: 0
C90: N | F90: E | G90: END | H90: 0 | I90: 0 | J90: 0 | K90: 00:00:00 | L90: END | M90: END | N90: 0 | O90: 10 | P90: 0 | Q90: 0 | R90: 0 | S90: 0 | T90: 0 | U90: 0 | V90: 1842.936259 | W90: 1855.354932 | X90: 0 | Y90: 0 | Z90: 0 | AA90: 0 | AB90: 0 | AC90: 0 | AD90: 0 | AE90: 0 | AF90: 0
C91: N | F91: E | G91: END | H91: 0 | I91: 0 | J91: 0 | K91: 00:00:00 | L91: END | M91: END | N91: 0 | O91: 10 | P91: 0 | Q91: 0 | R91: 0 | S91: 0 | T91: 0 | U91: 0 | V91: 1842.936259 | W91: 1855.354932 | X91: 0 | Y91: 0 | Z91: 0 | AA91: 0 | AB91: 0 | AC91: 0 | AD91: 0 | AE91: 0 | AF91: 0
C92: N | F92: E | G92: END | H92: 0 | I92: 0 | J92: 0 | K92: 00:00:00 | L92: END | M92: END | N92: 0 | O92: 10 | P92: 0 | Q92: 0 | R92: 0 | S92: 0 | T92: 0 | U92: 0 | V92: 1842.936259 | W92: 1855.354932 | X92: 0 | Y92: 0 | Z92: 0 | AA92: 0 | AB92: 0 | AC92: 0 | AD92: 0 | AE92: 0 | AF92: 0
C93: N | F93: E | G93: END | H93: 0 | I93: 0 | J93: 0 | K93: 00:00:00 | L93: END | M93: END | N93: 0 | O93: 10 | P93: 0 | Q93: 0 | R93: 0 | S93: 0 | T93: 0 | U93: 0 | V93: 1842.936259 | W93: 1855.354932 | X93: 0 | Y93: 0 | Z93: 0 | AA93: 0 | AB93: 0 | AC93: 0 | AD93: 0 | AE93: 0 | AF93: 0
C94: N | F94: E | G94: END | H94: 0 | I94: 0 | J94: 0 | K94: 00:00:00 | L94: END | M94: END | N94: 0 | O94: 10 | P94: 0 | Q94: 0 | R94: 0 | S94: 0 | T94: 0 | U94: 0 | V94: 1842.936259 | W94: 1855.354932 | X94: 0 | Y94: 0 | Z94: 0 | AA94: 0 | AB94: 0 | AC94: 0 | AD94: 0 | AE94: 0 | AF94: 0
C95: N | F95: E | G95: END | H95: 0 | I95: 0 | J95: 0 | K95: 00:00:00 | L95: END | M95: END | N95: 0 | O95: 10 | P95: 0 | Q95: 0 | R95: 0 | S95: 0 | T95: 0 | U95: 0 | V95: 1842.936259 | W95: 1855.354932 | X95: 0 | Y95: 0 | Z95: 0 | AA95: 0 | AB95: 0 | AC95: 0 | AD95: 0 | AE95: 0 | AF95: 0
C96: N | F96: E | G96: END | H96: 0 | I96: 0 | J96: 0 | K96: 00:00:00 | L96: END | M96: END | N96: 0 | O96: 10 | P96: 0 | Q96: 0 | R96: 0 | S96: 0 | T96: 0 | U96: 0 | V96: 1842.936259 | W96: 1855.354932 | X96: 0 | Y96: 0 | Z96: 0 | AA96: 0 | AB96: 0 | AC96: 0 | AD96: 0 | AE96: 0 | AF96: 0
C97: N | F97: E | G97: END | H97: 0 | I97: 0 | J97: 0 | K97: 00:00:00 | L97: END | M97: END | N97: 0 | O97: 10 | P97: 0 | Q97: 0 | R97: 0 | S97: 0 | T97: 0 | U97: 0 | V97: 1842.936259 | W97: 1855.354932 | X97: 0 | Y97: 0 | Z97: 0 | AA97: 0 | AB97: 0 | AC97: 0 | AD97: 0 | AE97: 0 | AF97: 0
C98: N | F98: E | G98: END | H98: 0 | I98: 0 | J98: 0 | K98: 00:00:00 | L98: END | M98: END | N98: 0 | O98: 10 | P98: 0 | Q98: 0 | R98: 0 | S98: 0 | T98: 0 | U98: 0 | V98: 1842.936259 | W98: 1855.354932 | X98: 0 | Y98: 0 | Z98: 0 | AA98: 0 | AB98: 0 | AC98: 0 | AD98: 0 | AE98: 0 | AF98: 0
C99: N | F99: E | G99: END | H99: 0 | I99: 0 | J99: 0 | K99: 00:00:00 | L99: END | M99: END | N99: 0 | O99: 10 | P99: 0 | Q99: 0 | R99: 0 | S99: 0 | T99: 0 | U99: 0 | V99: 1842.936259 | W99: 1855.354932 | X99: 0 | Y99: 0 | Z99: 0 | AA99: 0 | AB99: 0 | AC99: 0 | AD99: 0 | AE99: 0 | AF99: 0
C100: N | F100: E | G100: END | H100: 0 | I100: 0 | J100: 0 | K100: 00:00:00 | L100: END | M100: END | N100: 0 | O100: 10 | P100: 0 | Q100: 0 | R100: 0 | S100: 0 | T100: 0 | U100: 0 | V100: 1842.936259 | W100: 1855.354932 | X100: 0 | Y100: 0 | Z100: 0 | AA100: 0 | AB100: 0 | AC100: 0 | AD100: 0 | AE100: 0 | AF100: 0

Sheet Лист1
A1: широта-1 | B1: sin | C1: cos | D1: tan | E1: широта-2 | F1: sin | G1: cos | H1: tan | I1: поправка | J1: э.м. | L1: Скорость | M1: долгота-1 | N1: долгота-2
A2: =B6/60+A6 -> 60.02666667 | B2: =SIN(A2*PI()/180) -> 0.8662580205 | C2: =COS(A2*PI()/180) -> 0.4995968793 | D2: =TAN(A2*PI()/180) -> 1.733913994 | E2: =D6/60+C6 -> 60.04583333 | F2: =SIN(E2*PI()/180) -> 0.8664250979 | G2: =COS(E2*PI()/180) -> 0.4993070695 | H2: =TAN(E2*PI()/180) -> 1.735255018 | I2: 0.01745329252 | J2: 1.855356 | L2: 8.5 | M2: =F6/60+E6 -> 30 | N2: =H6/60+G6 -> 40
A3: эксцентриситет | B3: большая полуось | C3: МЧ1 | D3: МЧ2 | E3: РМЧ(э.м.) | F3: РМЧ(км) | H3: РШ | I3: 1мин шир | J3: м.м. | L3: СредШир | N3: 1 мин дол
A4: 0.081813333 | B4: 6378245 | C4: =3437.7468*LN(TAN((A2/2+45)*I2)*POWER((1-A4*B2)/(1+A4*B2),(A4/2))) -> 4510.602766 | D4: =3437.7468*LN(TAN((E2/2+45)*I2)*POWER((1-A4*F2)/(1+A4*F2),(A4/2))) -> 4512.901426 | E4: =D4-C4 -> 2.298659836 | F4: =ABS(E4*J2) -> 4.264832319 | G4: =F4/1.852 -> 2.302825226 | H4: =ABS((A6*60+B6)-(C6*60+D6)) -> 1.15 | I4: =1842.93625878542/POWER((1-0.0066934216*L5*L5),3/2) -> 1856.91161 | J4: 1.852 | L4: =(A2+E2)/2 -> 60.03625 | M4: =A4*A4 -> 0.006693421457 | N4: =(6378245*COS(L4*I2)*0.000290888)/SQRT(1-0.0066934216*SIN(L4*I2)*SIN(L4*I2)) -> 928.9971514 | O4: =(6378245*COS(L4*I2)*0.000290888)/SQRT(1-0.0066934216*SIN(L4*I2)*SIN(L4*I2)) -> 928.9971514
A5: 1шир-гр | B5: мин | C5: 2шир-гр | D5: мин | E5: 1долг-гр | F5: мин | G5: 2долг-гр | H5: мин | I5: разн.долгот | L5: =SIN(L4*PI()/180) -> 0.8663415714 | N5: х мин шир
A6: 60 | B6: 1.6 | C6: 60 | D6: 2.75 | E6: 30 | G6: 40 | I6: =ABS((E6*60+F6)-(G6*60+H6)) -> 600 | J6: минут | N6: =H4*I4/1000 -> 2.135448352
A7: скоростная поправка ГК | E7: =IF(A2>E2,IF(M2>N2,180,0),0) -> 0 | F7: =IF(A2>E2,IF(M2<N2,90,0),0) -> 0 | G7: =IF(A2<E2,IF(M2>N2,270,0),0) -> 0 | I7: Путь в КМ | J7: Путь в м.м. | L7: ПУ | M7: ОТШ(км) | N7: х мин дол
A8: =-57.2957795130823*(L2*COS(L8*0.0174532925199432)/(900*COS(A2*0.0174532925199432)+L2*SIN(L8*0.0174532925199432))) -> -0.004072549019 | I8: =SQRT(N6*N6+N8*N8) -> 557.4023814 | J8: =I8/1.852 -> 300.9732081 | L8: =J10+K10+J11+K11+J12+K12+J13+K13 -> 89.78049524 | M8: =I6*I4/1000 -> 1114.146966 | N8: =I6*N4/1000 -> 557.3982908
A9: ортодром. поправка
A10: =ABS(M2-N2)/2*SIN((A2+E2)/2*I2) -> 4.331707857 | I10: 1 четверть | J10: =IF(A2<E2,IF(M2<N2,ATAN(N8/N6)*E12,0),0) -> 89.78049524 | K10: =IF(A2<E2,IF(M2=N2,0,0),0) -> 0 | L10: =ATAN(N8/N6)*E12 -> 89.78049524
B11: восстановленный угол | E11: Радиан | I11: 2 четверть | J11: =IF(A2>E2,IF(M2<N2,180-ATAN(N8/N6)*E12,0),0) -> 0 | K11: =IF(A2>E2,IF(M2=N2,180,0),0) -> 0 | L11: =180-ATAN(N8/N6)*E12 -> 90.21950476
B12: =ASIN(B2)*E12 -> 60.02666667 | E12: =180/PI() -> 57.29577951 | I12: 3 четверть | J12: =IF(A2>E2,IF(M2>N2,180+ATAN(N8/N6)*57.2957795130823,0),0) -> 0 | K12: =IF(A2=E2,IF(M2<N2,90,0),0) -> 0 | L12: =ATAN(N8/N6)*E12+180 -> 269.7804952
I13: 4 четверть | J13: =IF(A2<E2,IF(M2>N2,360-ATAN(N8/N6)*E12,0),0) -> 0 | K13: =IF(A2=E2,IF(M2>N2,270,0),0) -> 0 | L13: =360-ATAN(N8/N6)*E12 -> 270.2195048
G16: =0.000290888*6378245*(1-0.0066934216) -> 1842.936259 | I16: 1842.936259
